Workbook

Sheet Foglio1 (hidden)
A2: cp aria | B2: 1006 | C2: J/kg*K
A3: cpvapore | B3: 1860 | C3: J/kg*K
A4: racqua | B4: 2501000 | C4: J/kg
M5: 0 | N5: 10000 | O5: 20000 | P5: 30000 | Q5: 40000 | R5: 50000 | S5: 60000 | T5: 70000 | U5: 80000 | V5: 90000 | W5: 100000 | X5: 110000
A6: -10 | B6: 0.001758412035 | C6: 0.001582123546 | D6: 0.001405934679 | E6: 0.001229845348 | F6: 0.001053855471 | G6: 0.0008779649613 | H6: 0.0007021737363 | I6: 0.0005264817116 | J6: 0.0003508888032 | K6: 0.0001753949272 | L6: -10
A7: -9.8 | B7: 0.001786590879 | C7: 0.001607470057 | D7: 0.001428452079 | E7: 0.001249536855 | F7: 0.001070724297 | G7: 0.0008920143174 | H7: 0.000713406827 | I7: 0.0005349017381 | J7: 0.0003564989626 | K7: 0.0001781984125 | L7: -9.8
A8: -9.6 | B8: 0.001815172536 | C8: 0.001633178659 | D8: 0.001451290946 | E8: 0.001269509303 | F8: 0.001087833638 | G8: 0.0009062638578 | H8: 0.0007247998704 | I8: 0.0005434415833 | J8: 0.0003621889039 | K8: 0.0001810417402 | L8: -9.6
A9: -9.4 | B9: 0.001844162036 | C9: 0.001659253866 | D9: 0.001474455281 | E9: 0.001289766184 | F9: 0.001105186477 | G9: 0.0009207160631 | H9: 0.0007363548455 | I9: 0.0005521027271 | J9: 0.0003679596112 | K9: 0.000183925401 | L9: -9.4
A10: -9.2 | B10: 0.001873564466 | C10: 0.001685700243 | D10: 0.001497949131 | E10: 0.001310311028 | F10: 0.001122785831 | G10: 0.0009353734398 | H10: 0.0007480737516 | I10: 0.0005608866649 | J10: 0.0003738120784 | K10: 0.0001868498905 | L10: -9.2
A11: -9 | B11: 0.001903384963 | C11: 0.0017125224 | D11: 0.001521776582 | E11: 0.0013311474 | F11: 0.001140634749 | G11: 0.0009502385204 | H11: 0.0007599586088 | I11: 0.0005697949074 | J11: 0.0003797473096 | K11: 0.0001898157092 | L11: -9
A12: -8.8 | B12: 0.001933628722 | C12: 0.001739724999 | D12: 0.001545941764 | E12: 0.001352278905 | F12: 0.001158736308 | G12: 0.0009653138636 | H12: 0.0007720114583 | I12: 0.0005788289808 | J12: 0.0003857663195 | K12: 0.000192823363 | L12: -8.8
A13: -8.6 | B13: 0.001964300989 | C13: 0.001767312748 | D13: 0.001570448852 | E13: 0.001373709182 | F13: 0.001177093622 | G13: 0.0009806020546 | H13: 0.0007842343618 | I13: 0.0005879904269 | J13: 0.0003918701328 | K13: 0.0001958733627 | L13: -8.6
A14: -8.4 | B14: 0.00199540707 | C14: 0.001795290407 | D14: 0.001595302062 | E14: 0.001395441912 | F14: 0.001195709834 | G14: 0.0009961057054 | H14: 0.0007966294027 | I14: 0.0005972808034 | J14: 0.0003980597847 | K14: 0.0001989662243 | L14: -8.4
A15: -8.2 | B15: 0.002026952324 | C15: 0.001823662784 | D15: 0.001620505656 | E15: 0.001417480811 | F15: 0.00121458812 | G15: 0.001011827455 | H15: 0.0008091986855 | I15: 0.0006067016837 | J15: 0.0004043363211 | K15: 0.0002021024692 | L15: -8.2 | M15: =+(M$5-$B$2*$A15)/($B$4+$B$3*$A15) -> 0.003318598667
A16: -8 | B16: 0.002058942168 | C16: 0.001852434739 | D16: 0.00164606394 | E16: 0.001439829636 | F16: 0.00123373169 | G16: 0.001027769969 | H16: 0.0008219443362 | I16: 0.0006162546576 | J16: 0.0004107007983 | K16: 0.0002052826239 | L16: -8 | M16: =+(M$5-$B$2*$A16)/($B$4+$B$3*$A16) -> 0.003237172783
A17: -7.8 | B17: 0.002091382073 | C17: 0.001881611182 | D17: 0.001671981265 | E17: 0.00146249218 | F17: 0.001253143786 | G17: 0.001043935941 | H17: 0.0008348685027 | I17: 0.0006259413306 | J17: 0.0004171542833 | K17: 0.0002085072201 | L17: -7.8 | M17: 0.003155771263
A18: -7.6 | B18: 0.002124277571 | C18: 0.001911197074 | D18: 0.001698262026 | E18: 0.001485472279 | F18: 0.001272827683 | G18: 0.001060328091 | H18: 0.0008479733545 | I18: 0.0006357633247 | J18: 0.0004236978541 | K18: 0.000211776795 | L18: -7.6 | M18: 0.003074394096
A19: -7.4 | B19: 0.002157634251 | C19: 0.001941197429 | D19: 0.001724910666 | E19: 0.001508773805 | F19: 0.001292786692 | G19: 0.00107694917 | H19: 0.0008612610836 | I19: 0.0006457222784 | J19: 0.0004303325992 | K19: 0.0002150918912 | L19: -7.4 | M19: 0.002993041272
A20: -7.3 | B20: 0.002174487297 | C20: 0.001956354611 | D20: 0.001738374341 | E20: 0.001520546325 | F20: 0.001302870406 | G20: 0.001085346423 | H20: 0.000867974218 | I20: 0.0006507536316 | J20: 0.0004336845053 | K20: 0.0002167666808 | L20: -7.3 | M20: 0.002952373984
A21: -7.2 | B21: 0.00219145776 | C21: 0.001971617312 | D21: 0.001751931671 | E21: 0.001532400673 | F21: 0.001313024154 | G21: 0.001093801952 | H21: 0.0008747339038 | I21: 0.0006558198465 | J21: 0.0004370596182 | K21: 0.0002184530566 | L21: -7.2 | M21: 0.002911712778
A22: -7.1 | B22: 0.002208546355 | C22: 0.001986986174 | D22: 0.001765583226 | E22: 0.001544337344 | F22: 0.00132324836 | G22: 0.001102316108 | H22: 0.0008815404211 | I22: 0.0006609211327 | J22: 0.000440458077 | K22: 0.000220151088 | L22: -7.1 | M22: 0.002871057652
A23: -7 | B23: 0.002225753803 | C23: 0.002002461842 | D23: 0.001779329577 | E23: 0.001556356836 | F23: 0.001333543449 | G23: 0.001110889244 | H23: 0.0008883940515 | I23: 0.0006660577007 | J23: 0.0004438800217 | K23: 0.0002218608446 | L23: -7 | M23: 0.002830408605
A24: -6.8 | B24: 0.002260528146 | C24: 0.002033736189 | D24: 0.001807108963 | E24: 0.001580646289 | F24: 0.001354347987 | G24: 0.001128213879 | H24: 0.0009022437858 | I24: 0.0006764375294 | J24: 0.0004507949315 | K24: 0.0002253158142 | L24: -6.8 | M24: 0.002749128741
A25: -6.6 | B25: 0.002295786614 | C25: 0.002065445578 | D25: 0.001835274457 | E25: 0.001605273066 | F25: 0.001375441216 | G25: 0.001145778719 | H25: 0.0009162853885 | I25: 0.0006869610379 | J25: 0.0004578054805 | K25: 0.0002288185298 | L25: -6.6 | M25: 0.002667873175
A26: -6.4 | B26: 0.002331535095 | C26: 0.002097595287 | D26: 0.001863830736 | E26: 0.001630241245 | F26: 0.001396826617 | G26: 0.001163586655 | H26: 0.0009305211642 | I26: 0.0006976299486 | J26: 0.0004649128127 | K26: 0.0002323695615 | L26: -6.4 | M26: 0.002586641897
A27: -6.2 | B27: 0.002367779535 | C27: 0.002130190652 | D27: 0.001892782523 | E27: 0.001655554944 | F27: 0.001418507707 | G27: 0.001181640608 | H27: 0.0009449534409 | I27: 0.0007084460011 | J27: 0.0004721180839 | K27: 0.0002359694848 | L27: -6.2 | M27: 0.002505434896
A28: -6 | B28: 0.002404525943 | C28: 0.002163237058 | D28: 0.00192213459 | E28: 0.001681218322 | F28: 0.00144048804 | G28: 0.001199943528 | H28: 0.0009595845699 | I28: 0.0007194109524 | J28: 0.0004794224608 | K28: 0.0002396188812 | L28: -6 | M28: 0.002424252161
A29: -5.8 | B29: 0.00244178039 | C29: 0.002196739951 | D29: 0.001951891757 | E29: 0.001707235584 | F29: 0.001462771204 | G29: 0.001218498393 | H29: 0.0009744169257 | I29: 0.0007305265768 | J29: 0.0004868271221 | K29: 0.0002433183378 | L29: -5.8 | M29: 0.00234309368
A30: -5.6 | B30: 0.00247954901 | C30: 0.002230704829 | D30: 0.001982058896 | E30: 0.001733610973 | F30: 0.001485360825 | G30: 0.001237308215 | H30: 0.0009894529069 | I30: 0.0007417946663 | J30: 0.000494333258 | K30: 0.0002470684472 | L30: -5.6 | M30: 0.002261959444
A31: -5.4 | B31: 0.002517838 | C31: 0.002265137249 | D31: 0.002012640925 | E31: 0.001760348779 | F31: 0.001508260563 | G31: 0.001256376031 | H31: 0.001004694936 | I31: 0.0007532170308 | J31: 0.0005019420701 | K31: 0.0002508698082 | L31: -5.4 | M31: 0.002180849441
A32: -5.2 | B32: 0.002556653621 | C32: 0.002300042824 | D32: 0.002043642815 | E32: 0.001787453332 | F32: 0.001531474118 | G32: 0.001275704913 | H32: 0.001020145459 | I32: 0.0007647954977 | J32: 0.0005096547722 | K32: 0.0002547230252 | L32: -5.2 | M32: 0.00209976366
A33: -5 | B33: 0.002596002198 | C33: 0.002335427224 | D33: 0.002075069585 | E33: 0.001814929009 | F33: 0.001555005225 | G33: 0.00129529796 | H33: 0.001035806947 | I33: 0.0007765319129 | J33: 0.0005174725899 | K33: 0.0002586287085 | L33: -5 | M33: 0.002018702091
A34: -4.8 | B34: 0.002635890122 | C34: 0.002371296178 | D34: 0.002106926308 | E34: 0.001842780229 | F34: 0.001578857656 | G34: 0.001315158305 | H34: 0.001051681894 | I34: 0.00078842814 | J34: 0.0005253967606 | K34: 0.0002625874743 | L34: -4.8 | M34: 0.001937664722
A35: -4.6 | B35: 0.002676323849 | C35: 0.002407655472 | D35: 0.002139218107 | E35: 0.001871011456 | F35: 0.001603035223 | G35: 0.00133528911 | H35: 0.001067772821 | I35: 0.0008004860611 | J35: 0.0005334285339 | K35: 0.0002665999449 | L35: -4.6 | M35: =+(M$5-$B$2*$A35)/($B$4+$B$3*$A35) -> 0.001856651544 | N35: =+(N$5-$B$2*$A35)/($B$4+$B$3*$A35) -> 0.005868777794
A36: -4.4 | B36: 0.0027173099 | C36: 0.002444510951 | D36: 0.002171950154 | E36: 0.001899627199 | F36: 0.001627541774 | G36: 0.001355693569 | H36: 0.001084082273 | I36: 0.0008127075769 | J36: 0.0005415691715 | K36: 0.0002706667486 | L36: -4.4 | M36: =+(M$5-$B$2*$A36)/($B$4+$B$3*$A36) -> 0.001775662544 | N36: =+(N$5-$B$2*$A36)/($B$4+$B$3*$A36) -> 0.005787190069
A37: -4.2 | B37: 0.002758854865 | C37: 0.00248186852 | D37: 0.002205127679 | E37: 0.001928632013 | F37: 0.001652381198 | G37: 0.001376374908 | H37: 0.001100612818 | I37: 0.0008250946063 | J37: 0.0005498199476 | K37: 0.0002747885195 | L37: -4.2 | M37: 0.001694697712 | N37: 0.005705626692
A38: -4 | B38: 0.002800965398 | C38: 0.002519734145 | D38: 0.002238755959 | E38: 0.001958030496 | F38: 0.001677557418 | G38: 0.001397336383 | H38: 0.001117367053 | I38: 0.0008376490872 | J38: 0.0005581821483 | K38: 0.0002789658982 | L38: -4 | M38: 0.001613757038 | N38: 0.00562408765
A39: -3.8 | B39: 0.002843648225 | C39: 0.002558113851 | D39: 0.002272840327 | E39: 0.001987827296 | F39: 0.001703074401 | G39: 0.001418581286 | H39: 0.001134347596 | I39: 0.0008503729762 | J39: 0.0005666570724 | K39: 0.0002831995312 | L39: -3.8 | M39: 0.00153284051 | N39: 0.005542572933
A40: -3.6 | B40: 0.002886910137 | C40: 0.002597013724 | D40: 0.002307386171 | E40: 0.002018027104 | F40: 0.001728936151 | G40: 0.001440112938 | H40: 0.001151557095 | I40: 0.0008632682492 | J40: 0.0005752460313 | K40: 0.0002874900712 | L40: -3.6 | M40: 0.001451948119 | N40: 0.00546108253
A41: -3.4 | B41: 0.002930757996 | C41: 0.002636439911 | D41: 0.002342398929 | E41: 0.002048634659 | F41: 0.00175514671 | G41: 0.001461934694 | H41: 0.00116899822 | I41: 0.0008763369008 | J41: 0.0005839503488 | K41: 0.0002918381772 | L41: -3.4 | M41: 0.001371079852 | N41: 0.005379616431
A42: -3.2 | B42: 0.002975198733 | C42: 0.002676398623 | D42: 0.002377884097 | E42: 0.002079654747 | F42: 0.001781710164 | G42: 0.001484049941 | H42: 0.00118667367 | I42: 0.0008895809452 | J42: 0.0005927713616 | K42: 0.0002962445145 | L42: -3.2 | M42: 0.001290235699 | N42: 0.005298174624
A43: -3 | B43: 0.003020239349 | C43: 0.002716896131 | D43: 0.002413847225 | E43: 0.002111092202 | F43: 0.001808630636 | G43: 0.0015064621 | H43: 0.001204586168 | I43: 0.0009030024159 | J43: 0.0006017104191 | K43: 0.0003007097545 | L43: -3 | M43: 0.001209415649 | N43: 0.005216757099
A44: -2.8 | B44: 0.003065886917 | C44: 0.002757938771 | D44: 0.002450293917 | E44: 0.002142951906 | F44: 0.001835912291 | G44: 0.001529174626 | H44: 0.001222738466 | I44: 0.0009166033662 | J44: 0.0006107688836 | K44: 0.0003052345754 | L44: -2.8 | M44: 0.001128619693 | N44: 0.005135363844
A45: -2.6 | B45: 0.00311214858 | C45: 0.002799532943 | D45: 0.002487229836 | E45: 0.002175238788 | F45: 0.001863559334 | G45: 0.001552191007 | H45: 0.00124113334 | I45: 0.0009303858689 | J45: 0.0006199481304 | K45: 0.0003098196614 | L45: -2.6 | M45: 0.001047847818 | N45: 0.00505399485
A46: -2.4 | B46: 0.003159031554 | C46: 0.002841685109 | D46: 0.002524660697 | E46: 0.002207957828 | F46: 0.001891576013 | G46: 0.001575514764 | H46: 0.001259773594 | I46: 0.0009443520167 | J46: 0.000629249548 | K46: 0.0003144657035 | L46: -2.4 | M46: 0.0009671000138 | N46: 0.004972650104
A47: -2.2 | B47: 0.003206543129 | C47: 0.002884401797 | D47: 0.002562592276 | E47: 0.002241114052 | F47: 0.001919966615 | G47: 0.001599149453 | H47: 0.001278662058 | I47: 0.0009585039224 | J47: 0.0006386745379 | K47: 0.0003191733988 | L47: -2.2 | M47: 0.0008863762702 | N47: 0.004891329596
A48: -2 | B48: 0.003254690666 | C48: 0.002927689601 | D48: 0.002601030404 | E48: 0.002274712538 | F48: 0.00194873547 | G48: 0.001623098666 | H48: 0.001297801593 | I48: 0.0009728437191 | J48: 0.0006482245151 | K48: 0.0003239434514 | L48: -2 | M48: 0.0008056765761 | N48: 0.004810033316
A49: -1.8 | B49: 0.003303481602 | C49: 0.002971555179 | D49: 0.00263998097 | E49: 0.002308758414 | F49: 0.001977886953 | G49: 0.001647366028 | H49: 0.001317195082 | I49: 0.0009873735599 | J49: 0.0006579009077 | K49: 0.0003287765717 | L49: -1.8 | M49: 0.0007250009209 | N49: 0.004728761253
A50: -1.6 | B50: 0.003352923448 | C50: 0.003016005258 | D50: 0.002679449923 | E50: 0.002343256857 | F50: 0.002007425477 | G50: 0.001671955198 | H50: 0.001336845439 | I50: 0.001002095619 | J50: 0.0006677051575 | K50: 0.0003336734769 | L50: -1.6 | M50: 0.0006443492937 | N50: 0.004647513395
A51: -1.4 | B51: 0.003403023791 | C51: 0.003061046629 | D51: 0.002719443268 | E51: 0.002378213096 | F51: 0.002037355501 | G51: 0.001696869874 | H51: 0.001356755606 | I51: 0.00101701209 | J51: 0.0006776387197 | K51: 0.0003386348908 | L51: -1.4 | M51: 0.0005637216838 | N51: 0.004566289731
A52: -1.2 | B52: 0.003453790292 | C52: 0.003106686152 | D52: 0.002759967071 | E52: 0.002413632409 | F52: 0.002067681527 | G52: 0.001722113787 | H52: 0.001376928552 | I52: 0.001032125189 | J52: 0.0006877030635 | K52: 0.000343661544 | L52: -1.2 | M52: 0.0004831180806 | N52: 0.004485090252
A53: -1 | B53: 0.003505230691 | C53: 0.003152930756 | D53: 0.002801027459 | E53: 0.002449520129 | F53: 0.002098408099 | G53: 0.001747690703 | H53: 0.001397367274 | I53: 0.001047437151 | J53: 0.0006978996714 | K53: 0.0003487541739 | L53: -1 | M53: 0.0004025384732 | N53: 0.004403914947
A54: -0.8 | B54: 0.003557352806 | C54: 0.003199787439 | D54: 0.002842630616 | E54: 0.002485881638 | F54: 0.002129539807 | G54: 0.001773604426 | H54: 0.0014180748 | I54: 0.001062950235 | J54: 0.0007082300401 | K54: 0.0003539135247 | L54: -0.8 | M54: 0.0003219828511 | N54: 0.004322763803 | O54: 0.008323544756
A55: -0.6 | B55: 0.00361016453 | C55: 0.003247263265 | D55: 0.002884782789 | E55: 0.002522722372 | F55: 0.002161081284 | G55: 0.001799858796 | H55: 0.001439054182 | I55: 0.001078666718 | J55: 0.0007186956801 | K55: 0.0003591403474 | L55: -0.6 | M55: 0.0002414512033 | N55: 0.004241636812 | O55: 0.008241822421
A56: -0.4 | B56: 0.003663673837 | C56: 0.003295365371 | D56: 0.002927490287 | E56: 0.00256004782 | F56: 0.002193037208 | G56: 0.00182645769 | H56: 0.001460308506 | I56: 0.0010945889 | J56: 0.0007292981162 | K56: 0.0003644354001 | L56: -0.4 | M56: 0.0001609435194 | N56: 0.004160533961 | O56: 0.008160124403
A57: -0.2 | B57: 0.003717888781 | C57: 0.003344100965 | D57: 0.002970759478 | E57: 0.002597863524 | F57: 0.002225412303 | G57: 0.001853405021 | H57: 0.001481840885 | I57: 0.001110719104 | J57: 0.000740038887 | K57: 0.0003697994477 | L57: -0.2 | M57: 8.04597885e-05 | N57: 0.004079455241 | O57: 0.008078450693
A58: -4.97379915e-14 | B58: 0.003772817494 | C58: 0.003393477323 | D58: 0.003014596796 | E58: 0.002636175078 | F58: 0.002258211337 | G58: 0.001880704741 | H58: 0.001503654461 | I58: 0.001127059671 | J58: 0.0007509195457 | K58: 0.0003752332624 | L58: -4.97379915e-14 | M58: 2.000656515e-17 | N58: 0.00399840064 | O58: 0.007996801279
A59: 0.2 | B59: 0.00382846819 | C59: 0.003443501796 | D59: 0.003059008734 | E59: 0.002674988134 | F59: 0.002291439124 | G59: 0.001908360837 | H59: 0.001525752406 | I59: 0.001143612967 | J59: 0.0007619416597 | K59: 0.0003807376231 | L59: 0.2 | M59: -8.04358568e-05 | N59: 0.003917370147 | O59: 0.007915176151
A60: 0.4 | B60: 0.003884849166 | C60: 0.003494181805 | D60: 0.003104001852 | E60: 0.002714308395 | F60: 0.002325100525 | G60: 0.001936377336 | H60: 0.001548137921 | I60: 0.00116038138 | J60: 0.0007731068109 | K60: 0.0003863133162 | L60: 0.4 | M60: -0.0001608477926 | N60: 0.003836363753 | O60: 0.007833575298
A61: 0.6 | B61: 0.0039419688 | C61: 0.003545524846 | D61: 0.003149582771 | E61: 0.002754141621 | F61: 0.002359200448 | G61: 0.001964758303 | H61: 0.00157081424 | I61: 0.001177367318 | J61: 0.0007844165957 | K61: 0.0003919611349 | L61: 0.6 | M61: -0.000241235818 | N61: 0.003755381445 | O61: 0.007751998708
A62: 0.8 | B62: 0.003999835551 | C62: 0.003597538487 | D62: 0.003195758178 | E62: 0.002794493628 | F62: 0.002393743845 | G62: 0.00199350784 | H62: 0.001593784624 | I62: 0.001194573214 | J62: 0.0007958726254 | K62: 0.00039768188 | L62: 0.8 | M62: -0.0003215999437 | N62: 0.003674423214 | O62: 0.007670446372
A63: 1 | B63: 0.004058457966 | C63: 0.003650230372 | D63: 0.003242534825 | E63: 0.002835370286 | F63: 0.002428735719 | G63: 0.00202263009 | H63: 0.001617052366 | I63: 0.00121200152 | J63: 0.0008074765258 | K63: 0.0004034763592 | L63: 1 | M63: -0.0004019401804 | N63: 0.003593489049 | O63: 0.007588918277
A64: 1.2 | B64: 0.004117844674 | C64: 0.003703608217 | D64: 0.003289919529 | E64: 0.002876777524 | F64: 0.002464181118 | G64: 0.002052129233 | H64: 0.00164062079 | I64: 0.001229654716 | J64: 0.0008192299378 | K64: 0.0004093453879 | L64: 1.2 | M64: -0.0004822565387 | N64: 0.003512578938 | O64: 0.007507414415
A65: 1.4 | B65: 0.004178004389 | C65: 0.003757679817 | D65: 0.003337919173 | E65: 0.002918721325 | F65: 0.00250008514 | G65: 0.00208200949 | H65: 0.00166449325 | I65: 0.001247535299 | J65: 0.0008311345172 | K65: 0.0004152897885 | L65: 1.4 | M65: -0.0005625490293 | N65: 0.003431692872 | O65: 0.007425934772
A66: 1.6 | B66: 0.004238945912 | C66: 0.00381245304 | D66: 0.003386540709 | E66: 0.002961207731 | F66: 0.002536452928 | G66: 0.00211227512 | H66: 0.001688673132 | I66: 0.001265645793 | J66: 0.0008431919348 | K66: 0.0004213103911 | L66: 1.6 | M66: -0.0006428176628 | N66: 0.003350830839 | O66: 0.00734447934
A67: 1.8 | B67: 0.00430067813 | C67: 0.003867935835 | D67: 0.003435791151 | E67: 0.003004242844 | F67: 0.002573289678 | G67: 0.002142930423 | H67: 0.001713163853 | I67: 0.001283988745 | J67: 0.0008554038768 | K67: 0.0004274080331 | L67: 1.8 | M67: -0.0007230624498 | N67: 0.003269992828 | O67: 0.007263048107
A68: 2 | B68: 0.004363210019 | C68: 0.003924136223 | D68: 0.003485677587 | E68: 0.00304783282 | F68: 0.002610600632 | G68: 0.00217397974 | H68: 0.001737968863 | I68: 0.001302566722 | J68: 0.0008677720445 | K68: 0.0004335835594 | L68: 2 | M68: -0.0008032834009 | N68: 0.00318917883 | O68: 0.007181641062
A69: 2.2 | B69: 0.004426550643 | C69: 0.003981062309 | D69: 0.003536207169 | E69: 0.003091983876 | F69: 0.002648391084 | G69: 0.002205427452 | H69: 0.001763091641 | I69: 0.001321382319 | J69: 0.0008802981548 | K69: 0.0004398378227 | L69: 2.2 | M69: -0.0008834805269 | N69: 0.003108388834 | O69: 0.007100258194
A70: 2.4 | B70: 0.004490709153 | C70: 0.004038722272 | D70: 0.00358738712 | E70: 0.00313670229 | F70: 0.002686666376 | G70: 0.002237277979 | H70: 0.001788535701 | I70: 0.001340438151 | J70: 0.0008929839399 | K70: 0.000446171683 | L70: 2.4 | M70: -0.0009636538382 | N70: 0.003027622828 | O70: 0.007018899493
A71: 2.6 | B71: 0.004555694793 | C71: 0.004097124373 | D71: 0.003639224731 | E71: 0.003181994396 | F71: 0.002725431901 | G71: 0.002269535785 | H71: 0.001814304589 | I71: 0.00135973686 | J71: 0.0009058311478 | K71: 0.0004525860082 | L71: 2.6 | M71: -0.001043803345 | N71: 0.002946880801 | O71: 0.006937564948 | P71: 0.0109282491
A72: 2.8 | B72: 0.004621516895 | C72: 0.004156276955 | D72: 0.003691727366 | E72: 0.003227866592 | F72: 0.002764693104 | G72: 0.002302205374 | H72: 0.001840401882 | I72: 0.001379281109 | J72: 0.0009188415421 | K72: 0.0004590816739 | L72: 2.8 | M72: -0.001123929059 | N72: 0.002866162745 | O72: 0.006856254549 | P72: 0.01084634635
A73: 3 | B73: 0.004688184885 | C73: 0.004216188438 | D73: 0.003744902455 | E73: 0.003274325335 | F73: 0.002804455479 | G73: 0.002335291294 | H73: 0.001866831191 | I73: 0.001399073587 | J73: 0.0009320169024 | K73: 0.0004656595633 | L73: 3 | M73: -0.00120403099 | N73: 0.002785468647 | O73: 0.006774968283 | P73: 0.01076446792
A74: 3.2 | B74: 0.00475570828 | C74: 0.004276867325 | D74: 0.003798757504 | E74: 0.003321377142 | F74: 0.002844724572 | G74: 0.002368798131 | H74: 0.00189359616 | I74: 0.001419117007 | J74: 0.0009453590241 | K74: 0.0004723205676 | L74: 3.2 | M74: -0.001284109149 | N74: 0.002704798496 | O74: 0.006693706142 | P74: 0.01068261379
A75: 3.4 | B75: 0.00482409669 | C75: 0.004338322204 | D75: 0.003853300088 | E75: 0.003369028595 | F75: 0.002885505983 | G75: 0.002402730518 | H75: 0.001920700468 | I75: 0.001439414108 | J75: 0.0009588697187 | K75: 0.0004790655858 | L75: 3.4 | M75: -0.001364163546 | N75: 0.002624152283 | O75: 0.006612468113 | P75: 0.01060078394
A76: 3.6 | B76: 0.004893359819 | C76: 0.004400561743 | D76: 0.003908537856 | E76: 0.003417286335 | F76: 0.002926805363 | G76: 0.002437093127 | H76: 0.001948147823 | I76: 0.00145996765 | J76: 0.0009725508139 | K76: 0.0004858955249 | L76: 3.6 | M76: -0.001444194193 | N76: 0.002543529997 | O76: 0.006531254187 | P76: 0.01051897838
A77: 3.8 | B77: 0.004963507468 | C77: 0.004463594696 | D77: 0.00396447853 | E77: 0.003466157069 | F77: 0.002968628415 | G77: 0.002471890677 | H77: 0.001975941973 | I77: 0.001480780423 | J77: 0.0009864041536 | K77: 0.0004928112997 | L77: 3.8 | M77: -0.001524201098 | N77: 0.002462931627 | O77: 0.006450064352 | P77: 0.01043719708
A78: 4 | B78: 0.005034549531 | C78: 0.004527429899 | D78: 0.004021129905 | E78: 0.003515647563 | F78: 0.003010980895 | G78: 0.002507127928 | H78: 0.002004086695 | I78: 0.001501855236 | J78: 0.001000431598 | K78: 0.0004998138332 | L78: 4 | M78: -0.001604184274 | N78: 0.002382357162 | O78: 0.006368898598 | P78: 0.01035544003
A79: 4.2 | B79: 0.005106496 | C79: 0.004592076275 | D79: 0.00407849985 | E79: 0.003565764652 | F79: 0.003053868616 | G79: 0.002542809684 | H79: 0.002032585803 | I79: 0.00152319493 | J79: 0.001014635025 | K79: 0.0005069040564 | L79: 4.2 | M79: -0.00168414373 | N79: 0.002301806592 | O79: 0.006287756914 | P79: 0.01027370724
A80: 4.4 | B80: 0.005179356963 | C80: 0.004657542834 | D80: 0.004136596311 | E80: 0.003616515232 | F80: 0.003097297442 | G80: 0.002578940793 | H80: 0.002061443146 | I80: 0.001544802365 | J80: 0.001029016326 | K80: 0.0005140829085 | L80: 4.4 | M80: =+(M$5-$B$2*$A80)/($B$4+$B$3*$A80) -> -0.001764079478 | N80: 0.002221279906 | O80: 0.00620663929 | P80: 0.01019199867
A81: 4.6 | B81: 0.00525314261 | C81: 0.004723838671 | D81: 0.004195427308 | E81: 0.003667906264 | F81: 0.003141273291 | G81: 0.002615526149 | H81: 0.002090662605 | I81: 0.001566680432 | J81: 0.001043577413 | K81: 0.0005213513367 | L81: 4.6 | M81: -0.001843991527 | N81: 0.002140777094 | O81: 0.006125545714 | P81: 0.01011031433
A82: 4.8 | B82: 0.005327863226 | C82: 0.004790972969 | D82: 0.004255000937 | E82: 0.003719944775 | F82: 0.003185802139 | G82: 0.00265257069 | H82: 0.002120248099 | I82: 0.001588832044 | J82: 0.001058320212 | K82: 0.0005287102968 | L82: 4.8 | M82: -0.001923879888 | N82: 0.002060298144 | O82: 0.006044476176 | P82: 0.01002865421
A83: 5 | B83: 0.005403529198 | C83: 0.004858955 | D83: 0.004315325372 | E83: 0.003772637859 | F83: 0.003230890014 | G83: 0.002690079398 | H83: 0.002150203581 | I83: 0.001611260142 | J83: 0.001073246668 | K83: 0.0005361607525 | L83: 5 | M83: -0.002003744572 | N83: 0.001979843047 | O83: 0.005963430666 | P83: 0.009947018285
A84: 5.2 | B84: 0.005480151015 | C84: 0.004927794125 | D84: 0.004376408866 | E84: 0.003825992676 | F84: 0.003276543003 | G84: 0.002728057303 | H84: 0.002180533041 | I84: 0.001633967693 | J84: 0.001088358741 | K84: 0.000543703676 | L84: 5.2 | M84: -0.00208358559 | N84: 0.001899411791 | O84: 0.005882409172 | P84: 0.009865406553
A85: 5.4 | B85: 0.005557739266 | C85: 0.004997499794 | D85: 0.004438259746 | E85: 0.003880016451 | F85: 0.003322767246 | G85: 0.002766509478 | H85: 0.002211240504 | I85: 0.001656957689 | J85: 0.001103658409 | K85: 0.000551340048 | L85: 5.4 | M85: -0.002163402951 | N85: 0.001819004366 | O85: 0.005801411684 | P85: 0.009783819001
A86: 5.6 | B86: 0.005636304644 | C86: 0.005068081548 | D86: 0.004500886422 | E86: 0.003934716479 | F86: 0.003369568942 | G86: 0.002805441045 | H86: 0.00224233003 | I86: 0.00168023315 | J86: 0.001119147668 | K86: 0.0005590708575 | L86: 5.6 | M86: -0.002243196667 | N86: 0.001738620762 | O86: 0.005720438191 | P86: 0.00970225562
A87: 5.8 | B87: 0.005715857947 | C87: 0.005139549021 | D87: 0.004564297382 | E87: 0.003990100123 | F87: 0.003416954348 | G87: 0.002844857171 | H87: 0.002273805717 | I87: 0.001703797122 | J87: 0.001134828532 | K87: 0.0005668971021 | L87: 5.8 | M87: -0.002322966747 | N87: 0.001658260968 | O87: 0.005639488683 | P87: 0.009620716398
A88: 6 | B88: 0.005796410074 | C88: 0.005211911937 | D88: 0.004628501193 | E88: 0.004046174813 | F88: 0.003464929775 | G88: 0.00288476307 | H88: 0.0023056717 | I88: 0.001727652679 | J88: 0.00115070303 | K88: 0.000574819788 | L88: 6 | M88: -0.002402713203 | N88: 0.001577924973 | O88: 0.005558563149 | P88: 0.009539201325
A89: 6.2 | B89: 0.005877972035 | C89: 0.005285180114 | D89: 0.004693506507 | E89: 0.00410294805 | F89: 0.003513501595 | G89: 0.002925164004 | H89: 0.00233793215 | I89: 0.00175180292 | J89: 0.00116677321 | K89: 0.0005828399297 | L89: 6.2 | M89: -0.002482436045 | N89: 0.001497612767 | O89: 0.005477661578 | P89: 0.009457710389 | Q89: 0.0134377592
A90: 6.4 | B90: 0.005960554942 | C90: 0.005359363466 | D90: 0.004759322053 | E90: 0.004160427405 | F90: 0.003562676238 | G90: 0.002966065282 | H90: 0.002370591275 | I90: 0.001776250972 | J90: 0.001183041138 | K90: 0.0005909585509 | L90: 6.4 | M90: -0.002562135283 | N90: 0.001417324339 | O90: 0.00539678396 | P90: 0.009376243581 | Q90: 0.0133557032
A91: 6.6 | B91: 0.006044170018 | C91: 0.005434471999 | D91: 0.004825956644 | E91: 0.004218620518 | F91: 0.003612460194 | G91: 0.003007472261 | H91: 0.002403653322 | I91: 0.001800999992 | J91: 0.001199508899 | K91: 0.0005991766835 | L91: 6.6 | M91: -0.002641810927 | N91: 0.001337059678 | O91: 0.005315930284 | P91: 0.009294800889 | Q91: 0.01327367149
A92: 6.8 | B92: 0.006128828592 | C92: 0.005510515815 | D92: 0.004893419179 | E92: 0.0042775351 | F92: 0.003662860009 | G92: 0.003049390348 | H92: 0.002437122575 | I92: 0.001826053162 | J92: 0.001216178593 | K92: 0.0006074953685 | L92: 6.8 | M92: -0.002721462989 | N92: 0.001256818775 | O92: 0.005235100539 | P92: 0.009213382303 | Q92: 0.01319166407
A93: 7 | B93: 0.006214542106 | C93: 0.005587505113 | D93: 0.004961718636 | E93: 0.004337178936 | F93: 0.003713882292 | G93: 0.003091824996 | H93: 0.002471003355 | I93: 0.001851413691 | J93: 0.001233052341 | K93: 0.0006159156556 | L93: 7 | M93: -0.002801091479 | N93: 0.001176601618 | O93: 0.005154294715 | P93: 0.009131987812 | Q93: 0.01310968091
A94: 7.2 | B94: 0.006301322108 | C94: 0.005665450191 | D94: 0.005030864081 | E94: 0.004397559881 | F94: 0.003765533713 | G94: 0.00313478171 | H94: 0.002505300023 | I94: 0.00187708482 | J94: 0.001250132281 | K94: 0.0006244386035 | L94: 7.2 | M94: -0.002880696407 | N94: 0.001096408197 | O94: 0.005073512802 | P94: 0.009050617406 | Q94: 0.01302772201
A95: 7.4 | B95: 0.006389180263 | C95: 0.005744361442 | D95: 0.005100864663 | E95: 0.004458685864 | F95: 0.003817821 | G95: 0.003178266042 | H95: 0.002540016978 | I95: 0.001903069814 | J95: 0.001267420569 | K95: 0.0006330652796 | L95: 7.4 | M95: -0.002960277784 | N95: 0.001016238502 | O95: 0.004992754787 | P95: 0.008969271073 | Q95: 0.01294578736
A96: 7.6 | B96: 0.006478128345 | C96: 0.005824249361 | D96: 0.00517172962 | E96: 0.004520564886 | F96: 0.003870750944 | G96: 0.003222283595 | H96: 0.002575158658 | I96: 0.001929371968 | J96: 0.001284919379 | K96: 0.0006417967607 | L96: 7.6 | M96: -0.003039835619 | N96: 0.0009360925214 | O96: 0.004912020662 | P96: 0.008887948803 | Q96: 0.01286387694
A97: 7.8 | B97: 0.006568178243 | C97: 0.005905124542 | D97: 0.005243468273 | E97: 0.004583205023 | F97: 0.003924330399 | G97: 0.003266840024 | H97: 0.00261072954 | I97: 0.001955994608 | J97: 0.001302630906 | K97: 0.0006506341322 | L97: 7.8 | M97: -0.003119369924 | N97: 0.0008559702454 | O97: 0.004831310415 | P97: 0.008806650585 | Q97: 0.01278199075
A98: 8 | B98: 0.006659341962 | C98: 0.005986997678 | D98: 0.005316090033 | E98: 0.004646614427 | F98: 0.00397856628 | G98: 0.003311941032 | H98: 0.002646734141 | I98: 0.001982941085 | J98: 0.001320557362 | K98: 0.0006595784889 | L98: 8 | M98: -0.00319888071 | N98: 0.0007758716632 | O98: 0.004750624036 | P98: 0.008725376409 | Q98: 0.01270012878
A99: 8.2 | B99: 0.00675163162 | C99: 0.006069879566 | D99: 0.005389604398 | E99: 0.004710801322 | F99: 0.004033465564 | G99: 0.003357592373 | H99: 0.002683177016 | I99: 0.002010214782 | J99: 0.001338700978 | K99: 0.0006686309347 | L99: 8.2 | M99: -0.003278367985 | N99: 0.0006957967644 | O99: 0.004669961514 | P99: 0.008644126264 | Q99: 0.01261829101
A100: 8.4 | B100: 0.006845059456 | C100: 0.006153781106 | D100: 0.005464020957 | E100: 0.004775774011 | F100: 0.004089035294 | G100: 0.003403799855 | H100: 0.002720062763 | I100: 0.002037819108 | J100: 0.001357064004 | K100: 0.0006777925827 | L100: 8.4 | M100: -0.003357831762 | N100: 0.0006157455385 | O100: =+(O$5-$B$2*$A100)/($B$4+$B$3*$A100) -> 0.004589322839 | P100: 0.008562900139 | Q100: 0.01253647744
A101: 8.6 | B101: 0.006939637823 | C101: 0.006238713301 | D101: 0.005539349386 | E101: 0.004841540871 | F101: 0.004145282575 | G101: 0.003450569336 | H101: 0.002757396018 | I101: 0.002065757506 | J101: 0.001375648708 | K101: 0.0006870645552 | L101: 8.6 | M101: -0.00343727205 | N101: 0.0005357179749 | O101: 0.004508708 | P101: 0.008481698024 | Q101: 0.01245468805
A102: 8.8 | B102: 0.007035379197 | C102: 0.006324687257 | D102: 0.005615599453 | E102: 0.00490811036 | F102: 0.004202214577 | G102: 0.003497906727 | H102: 0.00279518146 | I102: 0.002094033445 | J102: 0.00139445738 | K102: 0.0006964479841 | L102: 8.8 | M102: -0.003516688859 | N102: 0.0004557140633 | O102: 0.004428116986 | P102: 0.008400519908 | Q102: 0.01237292283
A103: 9 | B103: 0.007132296171 | C103: 0.006411714188 | D103: 0.005692781018 | E103: 0.004975491009 | F103: 0.004259838534 | G103: 0.003545817991 | H103: 0.002833423805 | I103: 0.002122650425 | J103: 0.001413492327 | K103: 0.0007059440105 | L103: 9 | M103: -0.003596082201 | N103: 0.000375733793 | O103: 0.004347549787 | P103: 0.00831936578 | Q103: 0.01229118177
A104: 9.2 | B104: 0.007230401461 | C104: 0.006499805413 | D104: 0.005770904033 | E104: 0.005043691431 | F104: 0.004318161747 | G104: 0.003594309144 | H104: 0.002872127815 | I104: 0.002151611977 | J104: 0.001432755876 | K104: 0.0007155537848 | L104: 9.2 | M104: -0.003675452085 | N104: 0.0002957771537 | O104: 0.004267006392 | P104: 0.008238235631 | Q104: 0.01220946487
A105: 9.4 | B105: 0.007329707907 | C105: 0.006588972358 | D105: 0.00584997854 | E105: 0.005112720317 | F105: 0.004377191582 | G105: 0.003643386256 | H105: 0.002911298289 | I105: 0.00218092166 | J105: 0.001452250375 | K105: 0.0007252784672 | L105: 9.4 | M105: -0.003754798522 | N105: 0.0002158441348 | O105: 0.004186486791 | P105: 0.008157129448 | Q105: 0.0121277721
A106: 9.6 | B106: 0.007430228471 | C106: 0.00667922656 | D106: 0.00593001468 | E106: 0.005182586438 | F106: 0.004436935472 | G106: 0.003693055451 | H106: 0.002950940073 | I106: 0.002210583066 | J106: 0.001471978188 | K106: 0.0007351192273 | L106: 9.6 | M106: -0.003834121522 | N106: 0.0001359347259 | O106: 0.004105990974 | P106: 0.008076047221 | Q106: 0.01204610347
A107: 9.8 | B107: 0.00753197624 | C107: 0.006770579663 | D107: 0.006011022684 | E107: 0.005253298644 | F107: 0.004497400917 | G107: 0.003743322906 | H107: 0.00299105805 | I107: 0.002240599816 | J107: 0.001491941703 | K107: 0.0007450772444 | L107: 9.8 | M107: -0.003913421096 | N107: 5.604891657e-05 | O107: 0.004025518929 | P107: 0.007994988941 | Q107: 0.01196445895 | R107: 0.01593392897
A108: 10 | B108: 0.007634964427 | C108: 0.006863043422 | D108: 0.006093012882 | E108: 0.00532486587 | F108: 0.004558595483 | G108: 0.003794194855 | H108: 0.003031657148 | I108: 0.002270975562 | J108: 0.001512143327 | K108: 0.0007551537074 | L108: 10 | M108: -0.003992697254 | N108: -2.38133037e-05 | O108: 0.003945070646 | P108: 0.007913954596 | Q108: 0.01188283855 | R108: 0.0158517225
A109: 10.2 | B109: 0.007739206374 | C109: 0.006956629704 | D109: 0.006175995696 | E109: 0.005397297127 | F109: 0.004620526808 | G109: 0.003845677584 | H109: 0.003072742339 | I109: 0.002301713988 | J109: 0.001532585485 | K109: 0.0007653498149 | L109: 10.2 | M109: -0.004071950006 | N109: -0.0001036519453 | O109: 0.003864646115 | P109: 0.007832944176 | Q109: 0.01180124224 | R109: 0.0157695403
A110: 10.4 | B110: 0.007844715549 | C110: 0.007051350487 | D110: 0.00625998165 | E110: 0.005470601515 | F110: 0.004683202594 | G110: 0.003897777438 | H110: 0.003114318635 | I110: 0.00233281881 | J110: 0.001553270624 | K110: 0.0007756667755 | L110: 10.4 | M110: -0.004151179363 | N110: -0.0001834670188 | O110: 0.003784245325 | P110: 0.007751957669 | Q110: 0.01171967001 | R110: 0.01568738236
A111: 10.6 | B111: 0.007951505553 | C111: 0.007147217864 | D111: 0.006344981363 | E111: 0.005544788213 | F111: 0.004746630616 | G111: 0.003950500816 | H111: 0.003156391094 | I111: 0.002364293773 | J111: 0.001574201211 | K111: 0.0007861058075 | L111: 10.6 | M111: -0.004230385335 | N111: -0.0002632585345 | O111: 0.003703868266 | P111: 0.007670995066 | Q111: 0.01163812187 | R111: 0.01560524867
A112: 10.8 | B112: 0.008059590115 | C112: 0.007244244043 | D112: 0.006431005553 | E112: 0.005619866484 | F112: 0.004810818716 | G112: 0.004003854172 | H112: 0.003198964817 | I112: 0.002396142655 | J112: 0.001595379733 | K112: 0.0007966681392 | L112: 10.8 | M112: -0.004309567933 | N112: -0.0003430265028 | O112: 0.003623514927 | P112: 0.007590056357 | Q112: 0.01155659779 | R112: 0.01552313922
A113: 11 | B113: 0.008168983098 | C113: 0.007342441347 | D113: 0.00651806504 | E113: 0.005695845679 | F113: 0.004875774809 | G113: 0.004057844021 | H113: 0.003242044948 | I113: 0.002428369267 | J113: 0.0016168087 | K113: 0.0008073550086 | L113: 11 | M113: -0.004388727166 | N113: -0.0004227709343 | O113: 0.003543185297 | P113: 0.007509141529 | Q113: 0.01147509776 | R113: 0.01544105399
A114: 11.2 | B114: 0.008279698498 | C114: 0.007441822214 | D114: 0.006606170741 | E114: 0.00577273523 | F114: 0.004941506879 | G114: 0.004112476931 | H114: 0.003285636677 | I114: 0.002460977452 | J114: 0.001638490639 | K114: 0.0008181676642 | L114: 11.2 | M114: -0.004467863046 | N114: -0.0005024918393 | O114: 0.003462879367 | P114: 0.007428250573 | Q114: 0.01139362178 | R114: 0.01535899299
A115: 11.4 | B115: 0.008391750447 | C115: 0.007542399201 | D115: 0.006695333677 | E115: 0.005850544659 | F115: 0.005008022982 | G115: 0.00416775953 | H115: 0.003329745237 | I115: 0.002493971084 | J115: 0.001660428101 | K115: 0.0008291073642 | L115: 11.4 | M115: -0.004546975582 | N115: -0.0005821892282 | O115: 0.003382597125 | P115: 0.007347383479 | Q115: 0.01131216983 | R115: 0.01527695619
A116: 11.6 | B116: 0.00850515321 | C116: 0.007644184986 | D116: 0.006785564971 | E116: 0.005929283572 | F116: 0.005075331246 | G116: 0.004223698504 | H116: 0.003374375908 | I116: 0.00252735407 | J116: 0.001682623655 | K116: 0.0008401753771 | L116: 11.6 | M116: -0.004626064785 | N116: -0.0006618631114 | O116: 0.003302338562 | P116: 0.007266540235 | Q116: 0.01123074191 | R116: 0.01519494358
A117: 11.8 | B117: 0.008619921193 | C117: 0.007747192364 | D117: 0.00687687585 | E117: 0.006008961664 | F117: 0.005143439872 | G117: 0.004280300596 | H117: 0.003419534013 | I117: 0.002561130351 | J117: 0.001705079895 | K117: 0.0008513729817 | L117: 11.8 | M117: -0.004705130665 | N117: -0.0007415134993 | O117: 0.003222103666 | P117: 0.007185720831 | Q117: 0.011149338 | R117: 0.01511295516
A118: 12 | B118: 0.00873606894 | C118: 0.007851434252 | D118: 0.006969277645 | E118: 0.006089588719 | F118: 0.005212357135 | G118: 0.004337572612 | H118: 0.003465224923 | I118: 0.002595303901 | J118: 0.001727799434 | K118: 0.0008627014669 | L118: 12 | M118: -0.004784173232 | N118: -0.0008211404023 | O118: 0.003141892427 | P118: 0.007104925257 | Q118: 0.01106795809 | R118: 0.01503099092
A119: 12.2 | B119: 0.008853611133 | C119: 0.00795692369 | D119: 0.00706278179 | E119: 0.006171174608 | F119: 0.005282091383 | G119: 0.004395521412 | H119: 0.003511454053 | I119: 0.002629878725 | J119: 0.001750784906 | K119: 0.000874162132 | L119: 12.2 | M119: -0.004863192497 | N119: -0.0009007438309 | O119: 0.003061704836 | P119: 0.007024153502 | Q119: 0.01098660217 | R119: 0.01494905084
A120: 12.4 | B120: 0.008972562599 | C120: 0.00806367384 | D120: 0.007157399828 | E120: 0.006253729295 | F120: 0.005352651038 | G120: 0.00445415392 | H120: 0.003558226866 | I120: 0.002664858865 | J120: 0.001774038967 | K120: 0.0008857562867 | L120: 12.4 | M120: -0.004942188471 | N120: -0.0009803237953 | O120: =+(O$5-$B$2*$A120)/($B$4+$B$3*$A120) -> 0.00298154088 | P120: 0.006943405555 | Q120: 0.01090527023 | R120: 0.01486713491
A121: 12.6 | B121: 0.009092938306 | C121: 0.008171697991 | D121: 0.007253143408 | E121: 0.00633726283 | F121: 0.005424044598 | G121: 0.00451347712 | H121: 0.003605548871 | I121: 0.002700248394 | J121: 0.001797564295 | K121: 0.0008974852512 | L121: 12.6 | M121: -0.005021161162 | N121: -0.001059880306 | O121: 0.00290140055 | P121: 0.006862681407 | Q121: 0.01082396226 | R121: 0.01478524312
A122: 12.8 | B122: 0.009214753365 | C122: 0.008281009554 | D122: 0.007350024287 | E122: 0.00642178536 | F122: 0.005496280637 | G122: 0.004573498056 | H122: 0.003653425624 | I122: 0.00273605142 | J122: 0.001821363591 | K122: 0.0009093503561 | L122: 12.8 | M122: -0.005100110583 | N122: -0.001139413373 | O122: 0.002821283836 | P122: 0.006781981046 | Q122: 0.01074267826 | R122: 0.01470337546
A123: 13 | B123: 0.009338023036 | C123: 0.00839162207 | D123: 0.007448054333 | E123: 0.00650730712 | F123: 0.005569367804 | G123: 0.004634223833 | H123: 0.003701862728 | I123: 0.002772272086 | J123: 0.001845439576 | K123: 0.0009213529427 | L123: 13 | M123: -0.005179036742 | N123: -0.001218923007 | O123: 0.002741190727 | P123: 0.006701304461 | Q123: 0.0106614182 | R123: 0.01462153193
A124: 13.2 | B124: 0.009462762724 | C124: 0.008503549208 | D124: 0.00754724552 | E124: 0.00659383844 | F124: 0.005643314826 | G124: 0.004695661619 | H124: 0.003750865834 | I124: 0.002808914568 | J124: 0.001869794995 | K124: 0.0009334943629 | L124: 13.2 | M124: -0.00525793965 | N124: -0.001298409219 | O124: 0.002661121212 | P124: 0.006620651644 | Q124: 0.01058018208 | R124: 0.01453971251
A125: 13.4 | B125: 0.009588987983 | C125: 0.008616804764 | D125: 0.007647609937 | E125: 0.006681389743 | F125: 0.005718130508 | G125: 0.004757818644 | H125: 0.003800440642 | I125: 0.002845983079 | J125: 0.001894432612 | K125: 0.0009457759791 | L125: 13.4 | M125: -0.005336819318 | N125: -0.001377872018 | O125: 0.002581075282 | P125: 0.006540022582 | Q125: 0.01049896988 | R125: 0.01445791718 | S125: 0.01841686448
A126: 13.6 | B126: 0.009716714517 | C126: 0.008731402668 | D126: 0.007749159783 | E126: 0.006769971547 | F126: 0.005793823732 | G126: 0.0048207022 | H126: 0.003850592899 | I126: 0.002883481864 | J126: 0.001919355217 | K126: 0.0009581991649 | L126: 13.6 | M126: -0.005415675756 | N126: -0.001457311416 | O126: 0.002501052925 | P126: 0.006459417265 | Q126: 0.01041778161 | R126: 0.01437614595 | S126: 0.01833451029
A127: 13.8 | B127: 0.009845958184 | C127: 0.008847356978 | D127: 0.007851907371 | E127: 0.006859594466 | F127: 0.00587040346 | G127: 0.004884319644 | H127: 0.003901328401 | I127: 0.002921415205 | J127: 0.001944565621 | K127: 0.0009707653043 | L127: 13.8 | M127: -0.005494508974 | N127: -0.001536727421 | O127: 0.002421054131 | P127: 0.006378835684 | Q127: 0.01033661724 | R127: 0.01429439879 | S127: 0.01825218034
A128: 14 | B128: 0.009976734991 | C128: 0.008964681889 | D128: 0.007955865128 | E128: 0.006950269209 | F128: 0.005947878732 | G128: 0.004948678395 | H128: 0.003952652994 | I128: 0.002959787419 | J128: 0.001970066657 | K128: 0.0009834757924 | L128: 14 | M128: -0.005573318982 | N128: -0.001616120046 | O128: 0.002341078891 | P128: 0.006298277827 | Q128: 0.01025547676 | R128: 0.0142126757 | S128: 0.01816987464
A129: 14.2 | B129: 0.0101090611 | C129: 0.009083391727 | D129: 0.008061045595 | E129: 0.007042006584 | F129: 0.006026258671 | G129: 0.005013785939 | H129: 0.004004572573 | I129: 0.002998602858 | J129: 0.001995861183 | K129: 0.0009963320351 | L129: 14.2 | M129: -0.00565210579 | N129: -0.001695489299 | O129: 0.002261127193 | P129: 0.006217743684 | Q129: 0.01017436018 | R129: 0.01413097667 | S129: 0.01808759316
A130: 14.4 | B130: 0.01024295284 | C130: 0.009203500955 | D130: 0.008167461432 | E130: 0.007134817495 | F130: 0.006105552478 | G130: 0.005079649823 | H130: 0.004057093082 | I130: 0.003037865912 | J130: 0.002021952078 | K130: 0.00100933545 | L130: 14.4 | M130: -0.00573086941 | N130: -0.001774835192 | O130: 0.002181199026 | P130: 0.006137233245 | Q130: 0.01009326746 | R130: 0.01404930168 | S130: 0.0180053359
A131: 14.5 | B131: 0.01031049096 | C131: 0.009264084899 | D131: 0.008221136602 | E131: 0.007181628962 | F131: 0.00614554498 | G131: 0.00511286777 | H131: 0.004083580557 | I131: 0.003057666676 | J131: 0.00203510957 | K131: 0.001015892792 | L131: 14.5 | M131: -0.005770242527 | N131: -0.001814499381 | O131: 0.002141243765 | P131: 0.00609698691 | Q131: 0.01005273006 | R131: 0.0140084732 | S131: 0.01796421635
A132: 14.6 | B132: 0.01037842668 | C132: 0.009325024175 | D132: 0.008275125414 | E132: 0.007228712947 | F132: 0.006185769437 | G132: 0.005146277663 | H132: 0.004110220518 | I132: 0.003077581006 | J132: 0.002048342245 | K132: 0.001022487464 | L132: 14.6 | M132: -0.00580960985 | N132: -0.001854157734 | O132: 0.002101294382 | P132: 0.006056746498 | Q132: 0.01001219861 | R132: 0.01396765073 | S132: 0.01792310285
A133: 14.7 | B133: 0.01044676208 | C133: 0.009386320632 | D133: 0.008329429485 | E133: 0.007276070842 | F133: 0.006226227022 | G133: 0.005179880464 | H133: 0.00413701372 | I133: 0.00309760946 | J133: 0.002061650469 | K133: 0.001029119645 | L133: 14.7 | M133: -0.005848971381 | N133: -0.001893810252 | O133: 0.002061350877 | P133: 0.006016512007 | Q133: 0.009971673136 | R133: 0.01392683427 | S133: 0.01788199539
A134: 14.8 | B134: 0.01051549926 | C134: 0.009447976124 | D134: 0.008384050436 | E134: 0.007323704043 | F134: 0.006266918914 | G134: 0.005213677139 | H134: 0.004163960924 | I134: 0.0031177526 | J134: 0.002075034609 | K134: 0.001035789517 | L134: 14.8 | M134: -0.005888327122 | N134: -0.001933456936 | O134: 0.002021413249 | P134: 0.005976283434 | Q134: 0.00993115362 | R134: 0.01388602381 | S134: 0.01784089399
A135: 14.9 | B135: 0.01058464032 | C135: 0.009509992516 | D135: 0.008438989898 | E135: 0.007371613955 | F135: 0.006307846297 | G135: 0.005247668658 | H135: 0.004191062895 | I135: 0.003138010988 | J135: 0.002088495037 | K135: 0.001042497261 | L135: 14.9 | M135: -0.005927677072 | N135: -0.001973097788 | O135: 0.001981481496 | P135: 0.00593606078 | Q135: 0.009890640064 | R135: 0.01384521935 | S135: 0.01779979863
A136: 15 | B136: 0.01065418738 | C136: 0.009572371681 | D136: 0.00849424951 | E136: 0.007419801988 | F136: 0.006349010359 | G136: 0.005281855997 | H136: 0.0042183204 | I136: 0.003158385192 | J136: 0.002102032121 | K136: 0.001049243059 | L136: 15 | M136: -0.005967021235 | N136: -0.002012732809 | O136: 0.001941555617 | P136: 0.005895844043 | Q136: 0.009850132469 | R136: 0.01380442089 | S136: 0.01775870932
A137: 15.2 | B137: 0.01079450801 | C137: 0.009698225865 | D137: 0.008605735772 | E137: 0.007517018086 | F137: 0.006432053303 | G137: 0.005350822051 | H137: 0.004273305091 | I137: 0.003199483316 | J137: 0.002129337752 | K137: 0.001062849553 | L137: 15.2 | M137: -0.006045692199 | N137: -0.002091985362 | O137: 0.001861721476 | P137: 0.005815428313 | Q137: 0.00976913515 | R137: 0.01372284199 | S137: 0.01767654883
A138: 15.4 | B138: 0.01093647826 | C138: 0.009825553837 | D138: 0.008718522477 | E138: 0.007615363748 | F138: 0.006516057364 | G138: 0.005420583182 | H138: 0.004328921198 | I138: 0.003241051546 | J138: 0.002156954501 | K138: 0.00107661047 | L138: 15.4 | M138: -0.006124340026 | N138: -0.002171214606 | O138: 0.001781910814 | P138: 0.005735036234 | Q138: 0.009688161654 | R138: 0.01364128707 | S138: 0.01759441249
A139: 15.6 | B139: 0.01108011542 | C139: 0.009954370903 | D139: 0.008832623005 | E139: 0.007714850483 | F139: 0.006601032244 | G139: 0.00549114734 | H139: 0.004385174973 | I139: 0.003283094491 | J139: 0.002184885386 | K139: 0.001090527296 | L139: 15.6 | M139: -0.006202964724 | N139: -0.002250420551 | O139: 0.001702123623 | P139: 0.005654667797 | Q139: 0.00960721197 | R139: 0.01355975614 | S139: 0.01751230032
A140: 15.8 | B140: 0.01122543697 | C140: 0.01008469251 | D140: 0.008948050858 | E140: 0.007815489909 | F140: 0.00668698773 | G140: 0.005562522541 | H140: 0.00444207272 | I140: 0.003325616796 | J140: 0.002213133453 | K140: 0.001104601526 | L140: 15.8 | M140: -0.006281566305 | N140: -0.002329603207 | O140: 0.001622359891 | P140: 0.005574322989 | Q140: 0.009526286087 | R140: 0.01347824919 | S140: 0.01743021228
A141: 16 | B141: 0.01137246052 | C141: 0.01021653427 | D141: 0.009064819666 | E141: 0.007917293746 | F141: 0.006773933696 | G141: 0.005634716873 | H141: 0.004499620796 | I141: 0.003368623147 | J141: 0.002241701771 | K141: 0.001118834668 | L141: 16 | M141: -0.006360144779 | N141: -0.002408762585 | O141: 0.001542619608 | P141: 0.005494001802 | Q141: 0.009445383995 | R141: 0.01339676619 | S141: 0.01734814838
A142: 16.2 | B142: 0.01152120388 | C142: 0.01034991191 | D142: 0.009182943183 | E142: 0.008020273821 | F142: 0.006861880104 | G142: 0.005707738491 | H142: 0.004557825611 | I142: 0.003412118268 | J142: 0.002270593431 | K142: 0.00113322824 | L142: 16.2 | M142: -0.006438700155 | N142: -0.002487898695 | O142: 0.001462902764 | P142: 0.005413704224 | Q142: 0.009364505684 | R142: 0.01331530714 | S142: 0.0172661086
A143: 16.4 | B143: 0.01167168503 | C143: 0.01048484133 | D143: 0.009302435292 | E143: 0.008124442069 | F143: 0.006950837003 | G143: 0.005781595621 | H143: 0.004616693631 | I143: 0.003456106919 | J143: 0.002299811553 | K143: 0.001147783774 | L143: 16.4 | M143: -0.006517232444 | N143: -0.002567011547 | O143: 0.001383209349 | P143: 0.005333430245 | Q143: 0.009283651142 | R143: 0.01323387204 | S143: 0.01718409293
A144: 16.6 | B144: 0.0118239221 | C144: 0.01062133858 | D144: 0.009423310004 | E144: 0.008229810532 | F144: 0.007040814532 | G144: 0.005856296562 | H144: 0.004676231373 | I144: 0.003500593902 | J144: 0.002329359277 | K144: 0.001162502811 | L144: 16.6 | M144: =+(M$5-$B$2*$A144)/($B$4+$B$3*$A144) -> -0.006595741656 | N144: -0.002646101152 | O144: 0.001303539352 | P144: 0.005253179856 | Q144: 0.009202820359 | R144: 0.01315246086 | S144: 0.01710210137
A145: 16.8 | B145: 0.01197793342 | C145: 0.01075941986 | D145: 0.00954558146 | E145: 0.008336391361 | F145: 0.007131822917 | G145: 0.005931849681 | H145: 0.004736445409 | I145: 0.003545584054 | J145: 0.002359239771 | K145: 0.001177386905 | L145: 16.8 | M145: =+(M$5-$B$2*$A145)/($B$4+$B$3*$A145) -> -0.006674227801 | N145: -0.002725167519 | O145: =+(O$5-$B$2*$A145)/($B$4+$B$3*$A145) -> 0.001223892762 | P145: 0.005172953044 | Q145: 0.009122013326 | R145: 0.01307107361 | S145: 0.01702013389 | T145: 0.02096919417
A146: 17 | B146: 0.01213373751 | C146: 0.01089910152 | D146: 0.009669263933 | E146: 0.008444196819 | F146: 0.007223872477 | G146: 0.006008263419 | H146: 0.004797342367 | I146: 0.003591082256 | J146: 0.002389456225 | K146: 0.001192437623 | L146: 17 | M146: -0.006752690889 | N146: -0.002804210659 | O146: 0.001144269571 | P146: 0.005092749801 | Q146: 0.009041230031 | R146: 0.01298971026 | S146: 0.01693819049 | T146: 0.02088667072
A147: 17.2 | B147: 0.01229135303 | C147: 0.01104040007 | D147: 0.009794371828 | E147: 0.008553239277 | F147: 0.00731697362 | G147: 0.006085546288 | H147: 0.004858928931 | I147: 0.003637093424 | J147: 0.002420011858 | K147: 0.001207656542 | L147: 17.2 | M147: -0.006831130931 | N147: -0.002883230583 | O147: 0.001064669766 | P147: 0.005012570115 | Q147: 0.008960470463 | R147: 0.01290837081 | S147: 0.01685627116 | T147: 0.02080417151
A148: 17.4 | B148: 0.01245079886 | C148: 0.01118333218 | D148: 0.009920919685 | E148: 0.00866353122 | F148: 0.007411136847 | G148: 0.006163706873 | H148: 0.004921211838 | I148: 0.003683622516 | J148: 0.002450909911 | K148: 0.001223045253 | L148: 17.4 | M148: -0.006909547937 | N148: -0.002962227299 | O148: 0.0009850933383 | P148: 0.004932413976 | Q148: 0.008879734614 | R148: 0.01282705525 | S148: 0.01677437589 | T148: 0.02072169653
A149: 17.6 | B149: 0.01261209405 | C149: 0.01132791466 | D149: 0.01004892218 | E149: 0.008775085245 | F149: 0.00750637275 | G149: 0.006242753834 | H149: 0.004984197884 | I149: 0.003730674531 | J149: 0.00248215365 | K149: 0.001238605356 | L149: 17.6 | M149: -0.006987941917 | N149: -0.00304120082 | O149: 0.0009055402773 | P149: 0.004852281374 | Q149: 0.008799022471 | R149: 0.01274576357 | S149: 0.01669250467 | T149: 0.02063924576
A150: 17.8 | B150: 0.01277525784 | C150: 0.01147416451 | D150: 0.01017839412 | E150: 0.008887914064 | F150: 0.007602692017 | G150: 0.006322695905 | H150: 0.005047893919 | I150: 0.003778254506 | J150: 0.00251374637 | K150: 0.001254338466 | L150: 17.8 | M150: -0.00706631288 | N150: -0.003120151154 | O150: 0.0008260105726 | P150: 0.004772172299 | Q150: 0.008718334025 | R150: 0.01266449575 | S150: 0.01661065748 | T150: 0.0205568192
A151: 18 | B151: 0.01294030964 | C151: 0.01162209887 | D151: 0.01030935045 | E151: 0.009002030505 | F151: 0.007700105428 | G151: 0.006403541893 | H151: 0.005112306851 | I151: 0.00382636752 | J151: 0.002545691389 | K151: 0.00127024621 | L151: 18 | M151: -0.007144660838 | N151: -0.003199078312 | O151: 0.0007465042139 | P151: 0.00469208674 | Q151: 0.008637669265 | R151: 0.01258325179 | S151: 0.01652883432 | T151: 0.02047441684
A152: 18.2 | B152: 0.01310726907 | C152: 0.01177173505 | D152: 0.01044180627 | E152: 0.009117447509 | F152: 0.007798623857 | G152: 0.006485300683 | H152: 0.005177443647 | I152: 0.003875018693 | J152: 0.00257799205 | K152: 0.001286330225 | L152: 18.2 | M152: -0.0072229858 | N152: -0.003277982304 | O152: 0.000667021191 | P152: 0.004612024686 | Q152: 0.008557028182 | R152: 0.01250203168 | S152: 0.01644703517 | T152: 0.02039203867
A153: 18.4 | B153: 0.01327615595 | C153: 0.01192309053 | D153: 0.01057577679 | E153: 0.009234178138 | F153: 0.007898258278 | G153: 0.006567981233 | H153: 0.005243311328 | I153: 0.003924213186 | J153: 0.002610651725 | K153: 0.001302592162 | L153: 18.4 | M153: -0.007301287776 | N153: -0.003356863141 | O153: 0.0005875614936 | P153: 0.004531986128 | Q153: 0.008476410763 | R153: 0.0124208354 | S153: 0.01636526003 | T153: 0.02030968467
A154: 18.6 | B154: 0.01344699027 | C154: 0.01207618296 | D154: 0.0107112774 | E154: 0.009352235569 | F154: 0.007999019757 | G154: 0.006651592581 | H154: 0.005309916978 | I154: 0.0039739562 | J154: 0.002643673811 | K154: 0.001319033684 | L154: 18.6 | M154: -0.007379566776 | N154: -0.003435720832 | O154: 0.0005081251114 | P154: 0.004451971055 | Q154: 0.008395816999 | R154: 0.01233966294 | S154: 0.01628350889 | T154: 0.02022735483
A155: 18.8 | B155: 0.01361979223 | C155: 0.01223103014 | D155: 0.0108483236 | E155: 0.009471633101 | F155: 0.00810091946 | G155: 0.006736143839 | H155: 0.005377267736 | I155: 0.00402425298 | J155: 0.002677061729 | K155: 0.001335656468 | L155: 18.8 | M155: -0.007457822812 | N155: -0.003514555389 | O155: 0.0004287120342 | P155: 0.004371979457 | Q155: 0.00831524688 | R155: 0.0122585143 | S155: 0.01620178173 | T155: 0.02014504915
A156: 19 | B156: 0.01379458222 | C156: 0.01238765005 | D156: 0.01098693105 | E156: 0.009592384153 | F156: 0.008203968651 | G156: 0.006821644199 | H156: 0.005445370801 | I156: 0.004075108811 | J156: 0.00271081893 | K156: 0.0013524622 | L156: 19 | M156: -0.007536055892 | N156: -0.00359336682 | O156: 0.0003493222517 | P156: 0.004292011323 | Q156: 0.008234700395 | R156: 0.01217738947 | S156: 0.01612007854 | T156: 0.02006276761
A157: 19.2 | B157: 0.01397138085 | C157: 0.01254606086 | D157: 0.01112711556 | E157: 0.009714502264 | F157: 0.008308178694 | G157: 0.006908102931 | H157: 0.005514233432 | I157: 0.004126529023 | J157: 0.00274494889 | K157: 0.001369452582 | L157: 19.2 | M157: -0.007614266026 | N157: -0.003672155136 | O157: 0.0002699557537 | P157: 0.004212066644 | Q157: 0.008154177534 | R157: 0.01209628842 | S157: 0.01603839931 | T157: 0.0199805102
A158: 19.4 | B158: 0.0141502089 | C158: 0.01270628089 | D158: 0.01126889307 | E158: 0.009838001097 | F158: 0.00841356105 | G158: 0.006995529383 | H158: 0.005583862949 | I158: 0.004178518985 | J158: 0.002779455112 | K158: 0.001386629326 | L158: 19.4 | M158: -0.007692453226 | N158: -0.003750920348 | O158: 0.00019061253 | P158: 0.004132145408 | Q158: 0.008073678286 | R158: 0.01201521116 | S158: 0.01595674404 | T158: 0.01989827692
A159: 19.6 | B159: 0.0143310874 | C159: 0.01286832865 | D159: 0.01141227968 | E159: 0.009962894441 | F159: 0.008520127284 | G159: 0.007083932986 | H159: 0.005654266731 | I159: 0.004231084113 | J159: 0.002814341125 | K159: 0.001403994159 | L159: 19.6 | M159: -0.0077706175 | N159: -0.003829662465 | O159: 0.0001112925702 | P159: 0.004052247605 | Q159: 0.007993202641 | R159: 0.01193415768 | S159: 0.01587511271 | T159: 0.01981606775
A160: 19.8 | B160: 0.01451403754 | C160: 0.01303222281 | D160: 0.01155729165 | E160: 0.01008919621 | F160: 0.008627889062 | G160: 0.007173323247 | H160: 0.005725452218 | I160: 0.004284229862 | J160: 0.002849610487 | K160: 0.00142154882 | L160: 19.8 | M160: -0.00784875886 | N160: -0.003908381498 | O160: 3.199586418e-05 | P160: 0.003972373226 | Q160: 0.007912750588 | R160: 0.01185312795 | S160: 0.01579350531 | T160: 0.01973388267
A161: 20 | B161: 0.01469908075 | C161: 0.01319798225 | D161: 0.01170394538 | E161: 0.01021692043 | F161: 0.008736858153 | G161: 0.007263709757 | H161: 0.005797426912 | I161: 0.004337961733 | J161: 0.002885266783 | K161: 0.00143929506 | L161: 20 | M161: -0.007926877315 | N161: -0.003987077456 | O161: -4.72775983e-05 | P161: 0.00389252226 | Q161: 0.007832322118 | R161: 0.01177212198 | S161: 0.01571192183 | T161: 0.01965172169
A162: 20.2 | B162: 0.01488623867 | C162: 0.01336562601 | D162: 0.01185225743 | E162: 0.01034608128 | F162: 0.008847046428 | G162: 0.007355102189 | H162: 0.005870198376 | I162: 0.004392285271 | J162: 0.002921313624 | K162: 0.001457234644 | L162: 20.2 | M162: -0.008004972875 | N162: -0.004065750351 | O162: -0.0001265278275 | P162: 0.003812694696 | Q162: 0.00775191722 | R162: 0.01169113974 | S162: 0.01563036227 | T162: 0.01956958479
A163: 20.4 | B163: 0.01507553313 | C163: 0.0135351733 | D163: 0.01200224449 | E163: 0.01047669306 | F163: 0.008958465865 | G163: 0.007447510297 | H163: 0.005943774236 | I163: 0.004447206064 | J163: 0.002957754649 | K163: 0.00147536935 | L163: 20.4 | M163: -0.00808304555 | N163: -0.004144400192 | O163: =+(O$5-$B$2*$A163)/($B$4+$B$3*$A163) -> -0.0002057548335 | P163: 0.003732890525 | Q163: 0.007671535883 | R163: 0.01161018124 | S163: 0.0155488266 | T163: 0.01948747196 | U163: 0.02342611731
A164: 20.6 | B164: 0.01526698621 | C164: 0.01370664356 | D164: 0.01215392346 | E164: 0.01060877018 | F164: 0.009071128546 | G164: 0.007540943919 | H164: 0.006018162182 | I164: 0.004502729744 | J164: 0.002994593528 | K164: 0.001493700967 | L164: 20.6 | M164: -0.00816109535 | N164: -0.004223026988 | O164: -0.0002849586267 | P164: 0.003653109735 | Q164: 0.007591178097 | R164: 0.01152924646 | S164: 0.01546731482 | T164: 0.01940538318 | U164: 0.02334345154
A165: 20.8 | B165: 0.01546062019 | C165: 0.01388005637 | D165: 0.01230731133 | E165: 0.0107423272 | F165: 0.009185046659 | G165: 0.007635412977 | H165: 0.006093369966 | I165: 0.00455886199 | J165: 0.003031833954 | K165: 0.0015122313 | L165: 20.8 | M165: =+(M$5-$B$2*$A165)/($B$4+$B$3*$A165) -> -0.008239122286 | N165: -0.004301630751 | O165: -0.0003641392171 | P165: 0.003573352317 | Q165: 0.007510843852 | R165: 0.01144833539 | S165: 0.01538582692 | T165: 0.01932331845 | U165: 0.02326080999
A166: 21 | B166: 0.01565645757 | C166: 0.01405543154 | D166: 0.01246242532 | E166: 0.01087737881 | F166: 0.0093002325 | G166: 0.007730927476 | H166: 0.006169405402 | I166: 0.004615608523 | J166: 0.003069479652 | K166: 0.001530962167 | L166: 21 | M166: -0.008317126367 | N166: -0.004380211491 | O166: -0.000443296615 | P166: 0.003493618261 | Q166: 0.007430533137 | R166: 0.01136744801 | S166: 0.01530436289 | T166: 0.01924127777 | U166: 0.02317819264
A167: 21.2 | B167: 0.01585452109 | C167: 0.01423278902 | D167: 0.01261928275 | E167: 0.01101393983 | F167: 0.009416698475 | G167: 0.007827497509 | H167: 0.006246276372 | I167: 0.004672975112 | J167: 0.003107534374 | K167: 0.001549895396 | L167: 21.2 | M167: -0.008395107604 | N167: -0.004458769217 | O167: -0.0005224308307 | P167: 0.003413907556 | Q167: 0.007350245942 | R167: 0.01128658433 | S167: 0.01522292272 | T167: 0.0191592611 | U167: 0.02309559949
A168: 21.4 | B168: 0.01605483369 | C168: 0.01441214902 | D168: 0.01277790114 | E168: 0.01115202522 | F168: 0.009534457097 | G168: 0.007925133253 | H168: 0.00632399082 | I168: 0.00473096757 | J168: 0.0031460019 | K168: 0.001569032832 | L168: 21.4 | M168: -0.008473066006 | N168: -0.00453730394 | O168: -0.0006015418741 | P168: 0.003334220192 | Q168: 0.007269982258 | R168: 0.01120574432 | S168: 0.01514150639 | T168: 0.01907726846 | U168: 0.02301303052
A169: 21.6 | B169: 0.01625741856 | C169: 0.01459353188 | D169: 0.01293829816 | E169: 0.01129165007 | F169: 0.00965352099 | G169: 0.008023844971 | H169: 0.006402556757 | I169: 0.004789591756 | J169: 0.00318488604 | K169: 0.001588376331 | L169: 21.6 | M169: -0.008551001584 | N169: -0.00461581567 | O169: -0.0006806297557 | P169: 0.003254556158 | Q169: 0.007189742072 | R169: 0.01112492799 | S169: 0.0150601139 | T169: 0.01899529981 | U169: 0.02293048573
A170: 21.8 | B170: 0.01646229912 | C170: 0.01477695819 | D170: 0.01310049166 | E170: 0.01143282962 | F170: 0.009773902889 | G170: 0.008123643016 | H170: 0.006481982257 | I170: 0.004848853577 | J170: 0.003224190631 | K170: 0.001607927766 | L170: 21.8 | M170: -0.008628914347 | N170: -0.004694304416 | O170: -0.0007596944854 | P170: 0.003174915445 | Q170: 0.007109525376 | R170: 0.01104413531 | S170: 0.01497874524 | T170: 0.01891335517 | U170: 0.0228479651
A171: 22 | B171: 0.01666949902 | C171: 0.01496244871 | D171: 0.01326449964 | E171: 0.01157557923 | F171: 0.009895615643 | G171: 0.008224537826 | H171: 0.006562275464 | I171: 0.004908758984 | J171: 0.003263919542 | K171: 0.001627689018 | L171: 22 | M171: -0.008706804305 | N171: -0.004772770189 | O171: -0.0008387360735 | P171: 0.003095298042 | Q171: 0.007029332158 | R171: 0.01096336627 | S171: 0.01489740039 | T171: 0.01883143451 | U171: 0.02276546862
A172: 22.2 | B172: 0.01687904214 | C172: 0.0151500244 | D172: 0.01343034028 | E172: 0.01171991441 | F172: 0.01001867221 | G172: 0.008326539931 | H172: 0.006643444586 | I172: 0.004969313977 | J172: 0.003304076669 | K172: 0.001647661987 | L172: 22.2 | M172: -0.00878467147 | N172: -0.004851213 | O172: -0.0009177545302 | P172: 0.00301570394 | Q172: 0.006949162409 | R172: 0.01088262088 | S172: 0.01481607935 | T172: 0.01874953782 | U172: 0.02268299629
A173: 22.4 | B173: 0.01709095262 | C173: 0.01533970645 | D173: 0.01359803194 | E173: 0.01186585081 | F173: 0.01014308567 | G173: 0.008429659949 | H173: 0.0067254979 | I173: 0.005030524603 | J173: 0.003344665938 | K173: 0.001667848583 | L173: 22.4 | M173: -0.00886251585 | N173: -0.004929632858 | O173: -0.0009967498655 | P173: 0.002936133127 | Q173: 0.006869016119 | R173: 0.01080189911 | S173: 0.0147347821 | T173: 0.01866766509 | U173: 0.02260054809
A174: 22.6 | B174: 0.01730525482 | C174: 0.01553151623 | D174: 0.01376759312 | E174: 0.01201340424 | F174: 0.01026886922 | G174: 0.008533908588 | H174: 0.00680844375 | I174: 0.005092396955 | J174: 0.003385691304 | K174: 0.001688250733 | L174: 22.6 | M174: -0.008940337455 | N174: -0.005008029772 | O174: -0.00107572209 | P174: 0.002856585593 | Q174: 0.006788893276 | R174: 0.01072120096 | S174: 0.01465350864 | T174: 0.01858581632 | U174: 0.02251812401
A175: 22.8 | B175: 0.01752197335 | C175: 0.01572547534 | D175: 0.01393904254 | E175: 0.01216259062 | F175: 0.01039603615 | G175: 0.008639296648 | H175: 0.006892290548 | I175: 0.005154937176 | J175: 0.003427156753 | K175: 0.001708870374 | L175: 22.8 | M175: -0.009018136296 | N175: -0.005086403754 | O175: -0.001154671213 | P175: 0.002777061329 | Q175: 0.00670879387 | R175: 0.01064052641 | S175: 0.01457225895 | T175: 0.01850399149 | U175: 0.02243572404
A176: 23 | B176: 0.01774113308 | C176: 0.01592160556 | D176: 0.01411239907 | E176: 0.01231342604 | F176: 0.01052459989 | G176: 0.008745835021 | H176: 0.006977046775 | I176: 0.005218151457 | J176: 0.003469066301 | K176: 0.001729709461 | L176: 23 | M176: -0.009095912382 | N176: -0.005164754814 | O176: -0.001233597245 | P176: 0.002697560324 | Q176: 0.006628717892 | R176: 0.01055987546 | S176: 0.01449103303 | T176: 0.0184221906 | U176: 0.02235334817
A177: 23.2 | B177: 0.01796275913 | C177: 0.01611992893 | D177: 0.01428768176 | E177: 0.01246592674 | F177: 0.010654574 | G177: 0.008853534691 | H177: 0.007062720983 | I177: 0.005282046036 | J177: 0.003511423992 | K177: 0.001750769959 | L177: 23.2 | M177: -0.009173665724 | N177: -0.00524308296 | O177: -0.001312500197 | P177: 0.002618082567 | Q177: 0.006548665331 | R177: 0.0104792481 | S177: 0.01440983086 | T177: 0.01834041362 | U177: 0.02227099639
A178: 23.4 | B178: 0.01818687686 | C178: 0.01632046765 | D178: 0.01446490985 | E178: 0.0126201091 | F178: 0.01078597213 | G178: 0.008962406736 | H178: 0.007149321791 | I178: 0.0053466272 | J178: 0.003554233903 | K178: 0.001772053851 | L178: 23.4 | M178: -0.009251396332 | N178: -0.005321388205 | O178: -0.001391380077 | P178: 0.00253862805 | Q178: 0.006468636177 | R178: 0.0103986443 | S178: 0.01432865243 | T178: 0.01825866056 | U178: 0.02218866869
A179: 23.6 | B179: 0.0184135119 | C179: 0.01652324419 | D179: 0.01464410276 | E179: 0.01277598965 | F179: 0.01091880806 | G179: 0.009072462329 | H179: 0.007236857892 | I179: 0.005411901289 | J179: 0.00359750014 | K179: 0.001793563132 | L179: 23.6 | M179: -0.009329104215 | N179: -0.005399670556 | O179: -0.001470236898 | P179: 0.002459196761 | Q179: 0.006388630419 | R179: 0.01031806408 | S179: 0.01424749774 | T179: 0.0181769314 | U179: 0.02210636505
A180: 23.8 | B180: 0.01864269013 | C180: 0.01672828121 | D180: 0.01482528008 | E180: 0.01293358507 | F180: 0.01105309571 | G180: 0.009183712737 | H180: 0.007325338047 | I180: 0.005477874687 | J180: 0.003641226841 | K180: 0.00181529981 | L180: 23.8 | M180: -0.009406789383 | N180: -0.005477930025 | O180: -0.001549070668 | P180: 0.00237978869 | Q180: 0.006308648048 | R180: 0.01023750741 | S180: 0.01416636676 | T180: 0.01809522612 | U180: 0.02202408548
A181: 23.9 | B181: 0.0187582411 | C181: 0.01683165455 | D181: 0.01491661908 | E181: 0.01301303111 | F181: 0.0111207883 | G181: 0.009239789544 | H181: 0.007369934903 | I181: 0.005511125637 | J181: 0.003663264166 | K181: 0.001826254056 | L181: 23.9 | M181: -0.009445623453 | N181: -0.005517051182 | O181: =+(O$5-$B$2*$A181)/($B$4+$B$3*$A181) -> -0.001588478912 | P181: 0.002340093359 | Q181: 0.006268665629 | R181: 0.0101972379 | S181: 0.01412581017 | T181: 0.01805438244 | U181: 0.02198295471 | V181: 0.02591152698
A182: 24 | B182: 0.0188744377 | C182: 0.01693560161 | D182: 0.01500846161 | E182: 0.01309291219 | F182: 0.0111888491 | G182: 0.009296169323 | H182: 0.007414771091 | I182: 0.005544553833 | J182: 0.003685418173 | K182: 0.001837265911 | L182: 24 | M182: -0.009484451847 | N182: -0.005556166622 | O182: -0.001627881397 | P182: 0.002300403828 | Q182: 0.006228689053 | R182: 0.01015697428 | S182: 0.0140852595 | T182: 0.01801354473 | U182: 0.02194182995 | V182: 0.02587011518
A183: 24.1 | B183: 0.01899128323 | C183: 0.01704012528 | D183: 0.01510081019 | E183: 0.01317323045 | F183: 0.01125727986 | G183: 0.009352853511 | H183: 0.007459847726 | I183: 0.005578160086 | J183: 0.003707689387 | K183: 0.00184833563 | L183: 24.1 | M183: -0.009523274568 | N183: -0.005595276346 | O183: -0.001667278125 | P183: 0.002260720096 | Q183: 0.006188718318 | R183: 0.01011671654 | S183: 0.01404471476 | T183: 0.01797271298 | U183: 0.0219007112 | V183: 0.02582870942
A184: 24.2 | B184: 0.01910878102 | C184: 0.01714522849 | D184: 0.01519366733 | E184: 0.01325398802 | F184: 0.01132608238 | G184: 0.009409843548 | H184: 0.007505165929 | I184: 0.005611945213 | J184: 0.003730078337 | K184: 0.001859463471 | L184: 24.2 | M184: -0.009562091616 | N184: -0.005634380356 | O184: -0.001706669097 | P184: 0.002221042163 | Q184: 0.006148753423 | R184: 0.01007646468 | S184: 0.01400417594 | T184: 0.0179318872 | U184: 0.02185959846 | V184: 0.02578730972
A185: 24.3 | B185: 0.01922693442 | C185: 0.01725091415 | D185: 0.01528703555 | E185: 0.01333518705 | F185: 0.01139525844 | G185: 0.009467140883 | H185: 0.007550726824 | I185: 0.005645910032 | J185: 0.003752585551 | K185: 0.00187064969 | L185: 24.3 | M185: =+(M$5-$B$2*$A185)/($B$4+$B$3*$A185) -> -0.009600902993 | N185: -0.005673478653 | O185: -0.001746054313 | P185: 0.002181370027 | Q185: 0.006108794367 | R185: 0.01003621871 | S185: 0.01396364305 | T185: 0.01789106739 | U185: 0.02181849173 | V185: 0.02574591607
A186: 24.4 | B186: 0.01934574678 | C186: 0.01735718521 | D186: 0.01538091739 | E186: 0.01341682969 | F186: 0.01146480984 | G186: 0.00952474697 | H186: 0.007596531541 | I186: 0.005680055365 | J186: 0.003775211562 | K186: 0.001881894544 | L186: 24.4 | M186: -0.009639708701 | N186: -0.005712571238 | O186: -0.001785433776 | P186: 0.002141703686 | Q186: 0.006068841149 | R186: 0.009995978611 | S186: 0.01392311607 | T186: 0.01785025354 | U186: 0.021777391 | V186: 0.02570452846
A187: 24.5 | B187: 0.01946522149 | C187: 0.01746404461 | D187: 0.01547531541 | E187: 0.01349891812 | F187: 0.01153473839 | G187: 0.009582663268 | H187: 0.007642581213 | I187: 0.005714382038 | J187: 0.003797956903 | K187: 0.001893198293 | L187: 24.5 | M187: -0.009678508739 | N187: -0.005751658113 | O187: -0.001824807486 | P187: 0.00210204314 | Q187: 0.006028893767 | R187: 0.009955744393 | S187: 0.01388259502 | T187: 0.01780944565 | U187: 0.02173629627 | V187: 0.0256631469
A188: 24.6 | B188: 0.01958536194 | C188: 0.01757149533 | D188: 0.01557023217 | E188: 0.01358145452 | F188: 0.01160504589 | G188: 0.009640891244 | H188: 0.007688876979 | I188: 0.005748890879 | J188: 0.00382082211 | K188: 0.001904561197 | L188: 24.6 | M188: -0.00971730311 | N188: -0.005790739278 | O188: -0.001864175445 | P188: 0.002062388387 | Q188: 0.00598895222 | R188: 0.009915516053 | S188: 0.01384207989 | T188: 0.01776864372 | U188: 0.02169520755 | V188: 0.02562177138
A189: 24.7 | B189: 0.01970617153 | C189: 0.01767954035 | D189: 0.01566567025 | E189: 0.01366444106 | F189: 0.01167573416 | G189: 0.009699432371 | H189: 0.007735419982 | I189: 0.00578358272 | J189: 0.003843807722 | K189: 0.001915983516 | L189: 24.7 | M189: -0.009756091815 | N189: -0.005829814735 | O189: -0.001903537654 | P189: 0.002022739426 | Q189: 0.005949016507 | R189: 0.009875293587 | S189: 0.01380157067 | T189: 0.01772784775 | U189: 0.02165412483 | V189: 0.02558040191
A190: 24.8 | B190: 0.01982765371 | C190: 0.01778818267 | D190: 0.01576163222 | E190: 0.01374787996 | F190: 0.01174680504 | G190: 0.009758288128 | H190: 0.007782211369 | I190: 0.005818458395 | J190: 0.003866914276 | K190: 0.001927465512 | L190: 24.8 | M190: -0.009794874855 | N190: -0.005868884485 | O190: -0.001942894114 | P190: 0.001983096256 | Q190: 0.005909086626 | R190: 0.009835076997 | S190: 0.01376106737 | T190: 0.01768705774 | U190: 0.02161304811 | V190: 0.02553903848
A191: 24.9 | B191: 0.01994981192 | C191: 0.01789742531 | D191: 0.0158581207 | E191: 0.01383177342 | F191: 0.01181826037 | G191: 0.009817459999 | H191: 0.007829252294 | I191: 0.005853518743 | J191: 0.003890142317 | K191: 0.001939007446 | L191: 24.9 | M191: -0.009833652231 | N191: -0.005907948529 | O191: -0.001982244827 | P191: 0.001943458875 | Q191: 0.005869162577 | R191: 0.009794866279 | S191: 0.01372056998 | T191: 0.01764627368 | U191: 0.02157197738 | V191: 0.02549768109
A192: 25 | B192: 0.02007264963 | C192: 0.01800727128 | D192: 0.01595513829 | E192: 0.01391612365 | F192: 0.01189010198 | G192: 0.009876949476 | H192: 0.007876543913 | I192: 0.005888764605 | J192: 0.003913492386 | K192: 0.001950609584 | L192: 25 | M192: -0.009872423945 | N192: -0.005947006869 | O192: -0.002021589794 | P192: 0.001903827282 | Q192: 0.005829244357 | R192: 0.009754661433 | S192: 0.01368007851 | T192: 0.01760549558 | U192: 0.02153091266 | V192: 0.02545632974
A193: 25.1 | B193: 0.02019617031 | C193: 0.01811772363 | D193: 0.01605268762 | E193: 0.01400093289 | F193: 0.01196233173 | G193: 0.009936758057 | H193: 0.007924087387 | I193: 0.005924196825 | J193: 0.00393696503 | K193: 0.001962272189 | L193: 25.1 | M193: -0.009911189998 | N193: -0.005986059507 | O193: -0.002060929016 | P193: 0.001864201475 | Q193: 0.005789331966 | R193: 0.009714462457 | S193: 0.01363959295 | T193: 0.01756472344 | U193: 0.02148985393 | V193: 0.02541498442
A194: 25.2 | B194: 0.02032037747 | C194: 0.01822878543 | D194: 0.01615077133 | E194: 0.01408620338 | F194: 0.01203495149 | G194: 0.009996887246 | H194: 0.007971883884 | I194: 0.005959816253 | J194: 0.003960560796 | K194: 0.001973995526 | L194: 25.2 | M194: -0.00994995039 | N194: -0.006025106442 | O194: -0.002100262494 | P194: 0.001824581455 | Q194: 0.005749425403 | R194: 0.009674269351 | S194: 0.0135991133 | T194: 0.01752395725 | U194: 0.0214488012 | V194: 0.02537364514
A195: 25.3 | B195: 0.02044527463 | C195: 0.01834045974 | D195: 0.01624939206 | E195: 0.01417193735 | F195: 0.01210796311 | G195: 0.01005733855 | H195: 0.008019934576 | I195: 0.005995623739 | J195: 0.003984280235 | K195: 0.001985779862 | L195: 25.3 | M195: -0.009988705124 | N195: -0.006064147676 | O195: =+(O$5-$B$2*$A195)/($B$4+$B$3*$A195) -> -0.002139590229 | P195: 0.001784967218 | Q195: 0.005709524665 | R195: 0.009634082113 | S195: 0.01355863956 | T195: 0.01748319701 | U195: =+(U$5-$B$2*$A195)/($B$4+$B$3*$A195) -> 0.02140775445 | V195: 0.0253323119
A196: 25.4 | B196: 0.02057086533 | C196: 0.01845274966 | D196: 0.01634855249 | E196: 0.01425813709 | F196: 0.01218136849 | G196: 0.0101181135 | H196: 0.008068240637 | I196: 0.006031620137 | J196: 0.004008123897 | K196: 0.001997625463 | L196: 25.4 | M196: -0.0100274542 | N196: -0.006103183212 | O196: -0.002178912223 | P196: 0.001745358765 | Q196: 0.005669629753 | R196: 0.009593900741 | S196: 0.01351817173 | T196: 0.01744244272 | U196: 0.02136671371 | V196: 0.02529098469
A197: 25.5 | B197: 0.02069715311 | C197: 0.01856565828 | D197: 0.01644825528 | E197: 0.01434480484 | F197: 0.0122551695 | G197: 0.0101792136 | H197: 0.008116803249 | I197: 0.006067806306 | J197: 0.004032092338 | K197: 0.002009532599 | L197: 25.5 | M197: -0.01006619762 | N197: -0.006142213049 | O197: -0.002218228478 | P197: 0.001705756093 | Q197: 0.005629740664 | R197: 0.009553725235 | S197: 0.01347770981 | T197: 0.01740169438 | U197: 0.02132567895 | V197: 0.02524966352
A198: 25.6 | B198: 0.02082414156 | C198: 0.01867918872 | D198: 0.01654850313 | E198: 0.01443194291 | F198: 0.01232936805 | G198: 0.01024064039 | H198: 0.008165623598 | I198: 0.006104183106 | J198: 0.004056186112 | K198: 0.002021501537 | L198: 25.6 | M198: -0.01010493538 | N198: -0.006181237189 | O198: -0.002257538994 | P198: 0.001666159202 | Q198: 0.005589857397 | R198: 0.009513555593 | S198: 0.01343725379 | T198: 0.01736095198 | U198: 0.02128465018 | V198: 0.02520834837
A199: 25.8 | B199: 0.02108023483 | C199: 0.01890812765 | D199: 0.01675064481 | E199: 0.01460763912 | F199: 0.01247896535 | G199: 0.01036448019 | H199: 0.008264042272 | I199: 0.006177512065 | J199: 0.004104751896 | K199: 0.002045625903 | L199: 25.8 | M199: -0.01018239395 | N199: -0.006259268384 | O199: -0.002336142814 | P199: 0.001586982756 | Q199: 0.005510108325 | R199: 0.009433233895 | S199: 0.01335635947 | T199: 0.01727948503 | U199: 0.0212026106 | V199: 0.02512573617
A200: 26 | B200: 0.0213391741 | C200: 0.0191395917 | D200: 0.0169549993 | E200: 0.01478524419 | F200: 0.01263017572 | G200: 0.01048964528 | H200: 0.008363506242 | I200: 0.006251613968 | J200: 0.004153825738 | K200: 0.002070000732 | L200: 26 | M200: -0.01025982992 | N200: -0.006337276807 | O200: -0.002414723695 | P200: 0.001507829416 | Q200: 0.005430382527 | R200: 0.009352935639 | S200: 0.01327548875 | T200: 0.01719804186 | U200: 0.02112059497 | V200: 0.02504314808
A201: 26.2 | B201: 0.02160098862 | C201: 0.0193736064 | D201: 0.01716158858 | E201: 0.01496477675 | F201: 0.01278301463 | G201: 0.01061614811 | H201: 0.008464025168 | I201: 0.006326495829 | J201: 0.004203412158 | K201: 0.00209462821 | L201: 26.2 | M201: -0.01033724329 | N201: -0.006415262467 | O201: -0.002493281647 | P201: 0.001428699173 | Q201: 0.005350679993 | R201: 0.009272660813 | S201: 0.01319464163 | T201: 0.01711662245 | U201: 0.02103860327 | V201: 0.02496058409
... 120 more rows

Sheet UTA
C1: FALSE | D1: TRUE | E1: TRUE | F1: 10 | G1: TRUE | H1: FALSE | I1: FALSE | J1: TRUE | K1: FALSE
G2: 0 | H2: 0 | I2: 0 | J2: 0 | K2: 0
G3: 0 | H3: 0 | I3: 0 | J3: 0 | K3: 0
A4: Progetto: | G4: 0 | H4: 0 | I4: 0 | J4: 0 | K4: 0 | L4: Data: | M4: =TODAY() -> 2016-10-12
A5: Destinazione: | G5: 0 | H5: 0 | I5: 0 | J5: 0 | K5: 0 | L5: N° id: | M5: UTA01
A6: Ubicazione: | G6: 0 | H6: 0 | I6: 0 | J6: 0 | K6: 0
G7: 0 | H7: 0 | I7: 0 | J7: 0 | K7: 0
A8: Portata aria totale | B8: 1000 | C8: [m3/h] | G8: 0 | H8: 0 | I8: 0 | J8: 0 | K8: 0
A9: Portata aria esterna | B9: 1000 | C9: [m3/h] | G9: 0 | H9: 0 | I9: 0 | J9: 0 | K9: 0
A10: Portata aria ricircolata | B10: 0 | C10: [m3/h] | G10: 0 | H10: 0 | I10: 0 | J10: 0 | K10: 0
A11: Carico termico estivo | C11: [kW] | G11: 0 | H11: 0 | I11: 0 | J11: 0 | K11: 0
A12: Carico termico invernale | G12: 0 | H12: 0 | I12: 0 | J12: 0 | K12: 0
G13: 0 | H13: 0 | I13: 0 | J13: 0 | K13: 0
C15: T | D15: UR | E15: ps | F15: pv | G15: 0 | H15: 0 | I15: delta H | J15: delta x | K15: potenza | L15: Note
C16: [°C] | D16: [%] | E16: [Pa] | F16: [Pa] | G16: [kg/kg] | H16: [kJ/kg] | I16: [kJ/kg] | J16: [kg/kg] | K16: [kW]
A17: ESTATE | B17: E | C17: 34 | D17: 55 | E17: 5325.586905 | F17: 2929.072798 | G17: 0.018515245 | H17: 81.68153183 | L17: Aria esterna
C18: 34 | D18: 55 | E18: 5325.586905 | F18: 2929.072798 | G18: 0.018515245 | H18: 81.68153183 | L18: Punto di miscela
B19: G | C19: 14.78 | D19: 100 | E19: 1681.038706 | F19: 1681.038706 | G19: 0.01049308399 | H19: 41.40034633 | L19: Punto finale raffreddamento
C20: 26 | D20: 50 | E20: 3362.960752 | F20: 1681.480376 | G20: 0.01049588742 | H20: 52.91379556 | L20: Punto immissione carico max
B21: I | C21: 26 | D21: 50 | E21: 3362.960752 | F21: 1681.480376 | G21: 0.01049588742 | H21: 52.91379556 | L21: Punto di immissione carico nullo
B22: A | C22: 26 | D22: 50 | E22: 3362.960752 | F22: 1681.480376 | G22: 0.01049588742 | H22: 52.91379556 | L22: Ambiente interno
B23: raff | I23: 40.28118551 | K23: 13.42706184 | L23: Trasf.di raffreddamento
B24: post | I24: 11.51344923 | K24: 3.837816411 | L24: Trasf.di post-riscaldamento
A25: INVERNO | B25: E | C25: 0 | D25: 80 | E25: 610.7575061 | F25: 488.6060049 | G25: 0.003013824185 | H25: 7.537574286 | L25: Aria esterna
C26: 0 | D26: 80 | E26: 610.7575061 | F26: 488.6060049 | G26: 0.003013824185 | H26: 7.537574286 | L26: Punto di miscela
B27: F | C27: 19.84695301 | D27: 21.09411588 | E27: 2316.314216 | F27: 488.6060049 | G27: 0.003013824185 | H27: 27.61486534 | L27: Punto iniziale umidificazione
B28: G | C28: 9.274538114 | D28: 100 | E28: 1169.198107 | F28: 1169.198107 | G28: 0.007260865817 | H28: 27.61486534 | L28: Punto finale umidificazione
B29: I | C29: 20 | D29: 50 | E29: 2338.396213 | F29: 1169.198107 | G29: 0.007260865817 | H29: 38.54952962 | L29: Punto di immissione
B30: A | C30: 20 | D30: 50 | E30: 2338.396213 | F30: 1169.198107 | G30: 0.007260865817 | H30: 38.54952962 | L30: Ambiente interno
B31: pre | I31: 20.07729105 | K31: 6.692430351 | L31: Trasf.di pre-riscaldamento
B32: umid | J32: 0.004247041632 | L32: Trasf.di umidificazione
B33: post | I33: 10.93466428 | K33: 3.644888092 | L33: Trasf.di post-riscaldamento
A67: UNITA' DI TRATTAMENTO ARIA
A68: Ventilatore di mandata | B68: Portata | D68: 1000 | E68: [m3/h] | I68: acqua | L68: tubazione | M68: VI | N68: VM
B69: Prev.statica utile | D69: 200 | E69: [Pa] | H69: potenza | I69: portata | J69: Tin | K69: Tout
B70: Potenza | E70: [kW] | H70: [kW] | I70: [kg/s] | J70: [°C] | K70: [°C]
A71: Ventilatore di ripresa | B71: Portata | D71: 800 | E71: [m3/h] | F71: Pre-riscaldamento | H71: 6.69 | I71: =portataH2O(H71,J71,K71) -> 0.16 | J71: 80 | K71: 70 | L71: =IF(H71<>0,tubazione(I71)," ") -> 3/4" | M71: =IF(I71<>0,ValvIntercettazione(I71)," ") -> 3/4" | N71: =IF(I71<>0,ValvModulante(I71)," ") -> 1/2"
B72: Prev.statica utile | D72: 200 | E72: [Pa] | F72: Raffreddamento | H72: 13.43 | I72: =portataH2O(H72,J72,K72) -> 0.64 | J72: 7 | K72: 12 | L72: =IF(H72<>0,tubazione(I72)," ") -> 1"1/4 | M72: =IF(I72<>0,ValvIntercettazione(I72)," ") -> 1"1/4 | N72: =IF(I72<>0,ValvModulante(I72)," ") -> 1"
B73: Potenza | E73: [kW] | F73: Post-riscaldamento | H73: 3.84 | I73: =portataH2O(H73,J73,K73) -> 0.09 | J73: 80 | K73: 70 | L73: =IF(H73<>0,tubazione(I73)," ") -> 1/2" | M73: =IF(I73<>0,ValvIntercettazione(I73)," ") -> 1/2" | N73: =IF(I73<>0,ValvModulante(I73)," ") -> 3/8"
A74: Pre-filtri | B74: Tipo/efficienza | F74: Alimentazioni dalla centrale termica e frigorifera
A75: Filtri | B75: Tipo/efficienza | F75: Acqua calda | H75: 10.53024676 | I75: =portataH2O(H75,J75,K75) -> 0.25 | J75: 80 | K75: 70 | L75: =IF(H75<>0,tubazione(I75)," ") -> 1" | M75: =IF(I75<>0,ValvIntercettazione(I75)," ") -> 1" | N75: =IF(I75<>0,ValvModulante(I75)," ") -> 3/4"
A76: Recuperatore | B76: Tipo | F76: Acqua fredda | H76: 13.42706184 | I76: =portataH2O(H76,J76,K76) -> 0.64 | J76: 7 | K76: 12 | L76: =IF(H76<>0,tubazione(I76)," ") -> 1"1/4 | M76: =IF(I76<>0,ValvIntercettazione(I76)," ") -> 1"1/4 | N76: =IF(I76<>0,ValvModulante(I76)," ") -> 1"
B77: Efficienza | E77: [%] | F77: Acqua temperata | H77: 0 | I77: =portataH2O(H77,J77,K77) -> 0 | J77: 0.1 | K77: 0 | L77: =IF(H77<>0,tubazione(I77)," ") ->  | M77: =IF(I77<>0,ValvIntercettazione(I77)," ") ->  | N77: =IF(I77<>0,ValvModulante(I77)," ") -> 
A78: Camera di miscela | B78: Aria esterna | E78: [m3/h]
B79: Aria ricircolata | E79: [m3/h] | F79: Umidificazione | H79: ad acqua | K79: portata | L79: 5.096449959 | M79: [kg/h]
A80: Note | B80: La batteria di raffreddamento deve avere un fattore di by-pass non superiore a 0,28 (numero di ranghi indicativo non inferiore a 4 ).
B81: Umidificazione teorico rendimento 100% (efficienza 100 %).
A84: Qui sotto sono presenti dati necessari al corretto funzionamento del foglio: NON MODIFICARE IL CONTENUTO DELLE CELLE
A85: tipo_UTA_1
A89: 34 | B89: 0.018515245
A90: 14.78 | B90: 0.01049308399
A91: 14.78 | B91: 0.01049308399
A101: recup | D101: Miscela | E101: Preriscaldamento | G101: Umidificazione | I101: Postriscaldamento | K101: recup | M101: Miscela | O101: Raffreddamento | Q101: Postriscaldamento
C102: =UTA!C25 -> 0 | D102: =UTA!G25 -> 0.003013824185 | E102: =UTA!C26 -> 0 | F102: =UTA!G26 -> 0.003013824185 | G102: =UTA!C27 -> 19.84695301 | H102: =UTA!G27 -> 0.003013824185 | I102: =UTA!C28 -> 9.274538114 | J102: =UTA!G28 -> 0.007260865817 | M102: =UTA!C17 -> 34 | N102: =UTA!G17 -> 0.018515245 | O102: =UTA!C18 -> 34 | P102: =UTA!G18 -> 0.018515245 | Q102: =+O104 -> 14.78 | R102: =+P104 -> 0.01049308399
C103: =UTA!C26 -> 0 | D103: =UTA!G26 -> 0.003013824185 | E103: 0 | F103: 0.003013824185 | G103: =UTA!C28 -> 9.274538114 | H103: =UTA!G28 -> 0.007260865817 | I103: =UTA!C29 -> 20 | J103: =UTA!G29 -> 0.007260865817 | M103: =UTA!C18 -> 34 | N103: =UTA!G18 -> 0.018515245 | O103: 34 | P103: 0.018515245 | Q103: =UTA!C20 -> 26 | R103: =UTA!G20 -> 0.01049588742
C104: =UTA!C30 -> 20 | D104: =UTA!G30 -> 0.007260865817 | E104: =UTA!C27 -> 19.84695301 | F104: =UTA!G27 -> 0.003013824185 | M104: =UTA!C22 -> 26 | N104: =UTA!G22 -> 0.01049588742 | O104: =A91 -> 14.78 | P104: =B91 -> 0.01049308399 | Q104: =UTA!C21 -> 26 | R104: =UTA!G21 -> 0.01049588742
O105: =+A90 -> 14.78 | P105: =+B90 -> 0.01049308399
C109: 23.68 | D109: 100 | E109: 2927.902817 | F109: 2927.902817 | G109: 0.01850762925 | H109: 70.92482559
B110: 9 | C110: =$C$119+($C$109-$C$119)/10*B110 -> 22.112 | D110: 100 | E110: =EXP((65.81-7066.27/(C110+273.15)-5.976*LN(C110+273.15))) -> 2662.784188 | F110: =D110*E110/100 -> 2662.784188 | G110: =0.62198*F110/(101325-F110) -> 0.01678655294
B111: 8 | C111: 20.544 | D111: 100 | E111: 2419.162008 | F111: 2419.162008 | G111: 0.01521316048
B112: 7 | C112: 18.976 | D112: 100 | E112: 2195.190531 | F112: 2195.190531 | G112: 0.01377350177
B113: 6 | C113: 17.408 | D113: 100 | E113: 1989.522814 | F113: 1989.522814 | G113: 0.01245721503
B114: 5 | C114: 15.84 | D114: 100 | E114: 1800.885154 | F114: 1800.885154 | G114: 0.01125470495 | O114: 8 | P114: =UTA!G19 -> 0.01049308399
B115: 4 | C115: 14.272 | D115: 100 | E115: 1628.074439 | F115: 1628.074439 | G115: 0.01015708091
B116: 3 | C116: 12.704 | D116: 100 | E116: 1469.955508 | F116: 1469.955508 | G116: 0.009156101544
B117: 2 | C117: 11.136 | D117: 100 | E117: 1325.458541 | F117: 1325.458541 | G117: 0.008244124833
B118: 1 | C118: 9.568 | D118: 100 | E118: 1193.576462 | F118: 1193.576462 | G118: 0.007414063054
C119: =O114 -> 8
A124: Condizioni termoigrometriche
B125: Inverno | D125: Estate
B126: Tbs [°C] | C126: UR [%] | D126: Tbs [°C] | E126: deltaT [°C] | F126: UR [%] | G126: x | H126: h s.l.m. | I126: lat Nord
A127: Roma | B127: =VLOOKUP($A$127,UTA!$A$145:$I$270,2,FALSE) -> 0 | C127: =VLOOKUP($A$127,UTA!$A$145:$I$270,3,FALSE) -> 60 | D127: =VLOOKUP($A$127,UTA!$A$145:$I$270,4,FALSE) -> 34 | E127: =VLOOKUP($A$127,UTA!$A$145:$I$270,5,FALSE) -> 11 | F127: =VLOOKUP($A$127,UTA!$A$145:$I$270,6,FALSE) -> 55 | G127: =VLOOKUP($A$127,UTA!$A$145:$I$270,7,FALSE) -> 0 | H127: =VLOOKUP($A$127,UTA!$A$145:$I$270,8,FALSE) -> 0 | I127: =VLOOKUP($A$127,UTA!$A$145:$I$270,9,FALSE) -> 0
N130: Efficienza filtri
N131: 1
N132: 2
N133: 3
N134: 4
N135: 5
N136: 6
N137: 7
N138: 8
N139: 9
N140: 10
N141: 11
N142: 12
N143: 13
N144: 14
A145: Città | E145: deltaT ge | F145: Ure | G145: x | H145: h s.l.m. | I145: lat Nord
A146: Roma | B146: 0 | C146: 60 | D146: 34 | E146: 11 | F146: 55
A147: Alessandria | B147: -8 | C147: 60 | D147: 30.5 | E147: 11 | F147: 50 | G147: 13.7 | H147: 95 | I147: 44° 55'
A148: Asti | B148: -8 | C148: 60 | D148: 32 | E148: 11 | F148: 50 | G148: 15 | H148: 152 | I148: 44° 54'
A149: Cuneo | B149: -10 | C149: 60 | D149: 29 | E149: 12 | F149: 55 | G149: 13.7 | H149: 536 | I149: 44° 24'
A150: Torino Caselle | B150: -8 | C150: 60 | D150: 30.5 | E150: 11 | F150: 50 | G150: 16.4 | H150: 282 | I150: 45° 11'
A151: Vercelli | B151: -7 | C151: 60 | D151: 32 | E151: 11 | F151: 55 | G151: 16.4 | H151: 135 | I151: 45° 19'
A152: Aosta | B152: -10 | C152: 60 | D152: 29 | E152: 13 | F152: 50 | G152: 12.6 | H152: 538 | I152: 45° 44'
A153: Capo Mele | B153: no | C153: 60 | D153: 29 | E153: 6 | F153: 55 | G153: 13.7 | H153: 221 | I153: 43° 57'
A154: Genova | B154: 0 | C154: 60 | D154: 30 | E154: 6 | F154: 60 | G154: 16 | H154: 3 | I154: 44° 25'
A155: Imperia | B155: 0 | C155: 60 | D155: 29 | E155: 6 | F155: 55 | G155: 13.7 | H155: 15 | I155: 43° 53'
A156: La Spezia | B156: 0 | C156: 60 | D156: 30 | E156: 6 | F156: 60 | G156: 16 | H156: 50 | I156: 44° 06'
A157: San Remo | B157: no | C157: 60 | D157: 28 | E157: 6 | F157: 55 | G157: 13 | H157: 9 | I157: 43° 49'
A158: Savona | B158: 0 | C158: 60 | D158: 29 | E158: 6 | F158: 55 | G158: 13.7 | H158: 24 | I158: 44° 18'
A159: Bergamo Orio | B159: -5 | C159: 60 | D159: 31 | E159: 13 | F159: 50 | G159: 14.1 | H159: 243 | I159: 45° 40'
A160: Brescia Ghedi | B160: -7 | C160: 60 | D160: 32 | E160: 15 | F160: 48 | G160: 14.4 | H160: 120 | I160: 45° 32'
A161: Como | B161: -5 | C161: 60 | D161: 32 | E161: 8 | F161: 50 | G161: 15 | H161: 200 | I161: 45° 48'
A162: Cremona | B162: -5 | C162: 60 | D162: 33 | E162: 12 | F162: 45 | G162: 14.2 | H162: 45 | I162: 45° 08'
A163: Mantova | B163: -5 | C163: 60 | D163: 33 | E163: 12 | F163: 45 | G163: 14.2 | H163: 20 | I163: 45° 09'
A164: Milano Linate | B164: -5 | C164: 60 | D164: 32 | E164: 12 | F164: 48 | G164: 14.4 | H164: 103 | I164: 45° 26'
A165: Vicenza | B165: -5 | C165: 60 | D165: 32 | E165: 12 | F165: 45 | G165: 13.8 | H165: 53 | I165: 45° 34'
A166: Gorizia | B166: -5 | C166: 60 | D166: 30.5 | E166: 11 | F166: 50 | G166: 13.7 | H166: 86 | I166: 45° 56'
A167: Pordenone | B167: -5 | C167: 60 | D167: 33 | E167: 10 | F167: 45 | G167: 14.2 | H167: 22 | I167: 45° 39'
A168: Trieste | B168: -5 | C168: 60 | D168: 31 | E168: 8 | F168: 50 | G168: 14.1 | H168: 20 | I168: 45° 39'
A169: Udine Campoformido | B169: -5 | C169: 60 | D169: 31.5 | E169: 11 | F169: 52 | G169: 15 | H169: 92 | I169: 46° 02'
A170: Bologna Borgo Panigale | B170: -5 | C170: 60 | D170: 33 | E170: 12 | F170: 43 | G170: 13.6 | H170: 49 | I170: 44° 31'
A171: Ferrara | B171: -5 | C171: 60 | D171: 32 | E171: 12 | F171: 45 | G171: 13.3 | H171: 41 | I171: 44° 50'
A172: Forlì | B172: -5 | C172: 60 | D172: 32 | E172: 10 | F172: 50 | G172: 15 | H172: 28 | I172: 44° 12'
A173: Marina di Ravenna | B173: no | C173: 60 | D173: 31 | E173: 9 | F173: 52 | G173: 14.5 | H173: 11 | I173: 44° 29'
A174: Modena | B174: -5 | C174: 60 | D174: 32 | E174: 10 | F174: 50 | G174: 15 | H174: 76 | I174: 44° 38'
A175: Parma | B175: -5 | C175: 60 | D175: 31 | E175: 10 | F175: 55 | G175: 15.4 | H175: 57 | I175: 44° 48'
A176: Ravenna | B176: -5 | C176: 60 | D176: 31 | E176: 10 | F176: 50 | G176: 14.1 | H176: 2 | I176: 44° 23'
A177: Reggio Emilia | B177: -5 | C177: 60 | D177: 31.5 | E177: 10 | F177: 55 | G177: 16 | H177: 60 | I177: 44° 42'
A178: Rimini | B178: no | C178: 60 | D178: 30 | E178: 10 | F178: 60 | G178: 16 | H178: 13 | I178: 44° 01'
A179: Arezzo | B179: 0 | C179: 60 | D179: 31.5 | E179: 12 | F179: 50 | G179: 14.6 | H179: 247 | I179: 43° 28'
A180: Firenze Peretola | B180: 0 | C180: 60 | D180: 33.5 | E180: 13 | F180: 45 | G180: 14.6 | H180: 48 | I180: 43° 48'
A181: Grosseto | B181: 0 | C181: 60 | D181: 33 | E181: 13 | F181: 42 | G181: 13.1 | H181: 7 | I181: 42° 45'
A182: Livorno | B182: 0 | C182: 60 | D182: 31 | E182: 10 | F182: 55 | G182: 15.4 | H182: 3 | I182: 43° 33'
A183: Lucca | B183: 0 | C183: 60 | D183: 32.5 | E183: 10 | F183: 50 | G183: 15.4 | H183: 20 | I183: 43° 51'
A184: Massa Carrara | B184: 0 | C184: 60 | D184: 32.5 | E184: 11 | F184: 50 | G184: 15.4 | H184: 65 | I184: 44° 02'
A185: Pisa S. Giusto | B185: 0 | C185: 60 | D185: 31.5 | E185: 10 | F185: 55 | G185: 16 | H185: 11 | I185: 43° 41'
A186: Pistoia | B186: no | C186: 60 | D186: 31.5 | E186: 12 | F186: 50 | G186: 14.6 | H186: 88 | I186: 43° 56'
A187: Siena | B187: -2 | C187: 60 | D187: 31 | E187: 13 | F187: 50 | G187: 14.1 | H187: 364 | I187: 43° 19'
A188: Ancona | B188: -2 | C188: 60 | D188: 29.5 | E188: 5.5 | F188: 63 | G188: 16.2 | H188: 105 | I188: 43° 47'
A189: Ancona Falconara | B189: -2 | C189: 60 | D189: 31 | E189: 13.5 | F189: 58 | G189: 16.5 | H189: 9 | I189: 43° 38'
A190: Ascoli Piceno | B190: -2 | C190: 60 | D190: 33 | E190: 10 | F190: 45 | G190: 14.2 | H190: 136 | I190: 42° 54'
A191: Macerata | B191: -2 | C191: 60 | D191: 31 | E191: 12 | F191: 50 | G191: 14.1 | H191: 342 | I191: 43° 18'
A192: Pesaro | B192: no | C192: 60 | D192: 30.5 | E192: 9 | F192: 60 | G192: 16.6 | H192: 14 | I192: 43° 54'
A193: Perugia | B193: -2 | C193: 60 | D193: 30.5 | E193: 10 | F193: 40 | G193: 11 | H193: 213 | I193: 43° 05'
A194: Terni | B194: -2 | C194: 60 | D194: 32.5 | E194: 9 | F194: 35 | G194: 10.6 | H194: 170 | I194: 42° 34'
A195: Frosinone | B195: 0 | C195: 60 | D195: 31.5 | E195: 12 | F195: 45 | G195: 13 | H195: 180 | I195: 41° 39'
A196: Latina | B196: 2 | C196: 60 | D196: 33 | E196: 10 | F196: 40 | G196: 12.6 | H196: 45 | I196: 41° 33'
A197: Ponza | B197: no | C197: 60 | D197: 29.5 | E197: 5.5 | F197: 60 | G197: 15.6 | H197: 185 | I197: 40° 55'
A198: Pratica di Mare | B198: no | C198: 60 | D198: 30.5 | E198: 11.5 | F198: 60 | G198: 16.6 | H198: 17 | I198: 41° 39'
A199: Rieti | B199: -3 | C199: 60 | D199: 29.5 | E199: 12 | F199: 50 | G199: 13 | H199: 402 | I199: 42° 24'
A200: Roma Ciampino | B200: 0 | C200: 60 | D200: 33 | E200: 11.5 | F200: 45 | G200: 14.2 | H200: 137 | I200: 41° 48'
A201: Roma Fiumicino | B201: no | C201: 60 | D201: 31 | E201: 10 | F201: 55 | G201: 15.4 | H201: 2 | I201: 41° 48'
A202: Viterbo | B202: -2 | C202: 60 | D202: 31 | E202: 12 | F202: 45 | G202: 12.6 | H202: 320 | I202: 42° 26'
A203: L'Aquila | B203: -5 | C203: 60 | D203: 29 | E203: 10 | F203: 50 | G203: 12.6 | H203: 735 | I203: 42° 21'
A204: Pescara | B204: 2 | C204: 60 | D204: 31.5 | E204: 10 | F204: 55 | G204: 16 | H204: 16 | I204: 42° 26'
A205: Teramo | B205: 0 | C205: 60 | D205: 32 | E205: 8 | F205: 40 | G205: 12 | H205: 407 | I205: 42° 39'
A206: Campobasso | B206: -4 | C206: 60 | D206: 29 | E206: 9 | F206: 50 | G206: 12.6 | H206: 793 | I206: 41° 34'
A207: Isernia | B207: no | C207: 60 | D207: 30 | E207: 10 | F207: 45 | G207: 11.8 | H207: 402 | I207: 41° 35'
A208: Avellino | B208: -2 | C208: 60 | D208: 30 | E208: 11 | F208: 50 | G208: 13.3 | H208: 370 | I208: 40° 55'
A209: Benevento | B209: no | C209: 60 | D209: 32 | E209: 11 | F209: 50 | G209: 15 | H209: 170 | I209: 41° 08'
A210: Capo Palinuro | B210: no | C210: 60 | D210: 30 | E210: 6 | F210: 60 | G210: 16 | H210: 185 | I210: 40° 01'
A211: Caserta | B211: 0 | C211: 60 | D211: 32 | E211: 11 | F211: 50 | G211: 15 | H211: 90 | I211: 41° 01'
A212: Napoli Capodichino | B212: 2 | C212: 60 | D212: 32 | E212: 10.5 | F212: 45 | G212: 13.3 | H212: 72 | I212: 40° 53'
A213: Bari Palese | B213: 0 | C213: 60 | D213: 32 | E213: 8 | F213: 50 | G213: 15 | H213: 49 | I213: 41° 08'
A214: Brindisi | B214: 0 | C214: 60 | D214: 31.5 | E214: 8 | F214: 60 | G214: 17.5 | H214: 10 | I214: 40° 40'
A215: Foggia | B215: 0 | C215: 60 | D215: 34 | E215: 13 | F215: 33 | G215: 11 | H215: 56 | I215: 41° 32'
A216: Gioia del Colle | B216: no | C216: 60 | D216: 33 | E216: 17 | F216: 35 | G216: 11 | H216: 365 | I216: 40° 48'
A217: Lecce | B217: 0 | C217: 60 | D217: 33 | E217: 12.5 | F217: 40 | G217: 12.6 | H217: 51 | I217: 40° 21'
A218: S. Maria di Leuca | B218: no | C218: 60 | D218: 31.5 | E218: 7 | F218: 45 | G218: 13 | H218: 112 | I218: 39° 49'
A219: Taranto | B219: 0 | C219: 60 | D219: 33 | E219: 8.5 | F219: 43 | G219: 13.6 | H219: 15 | I219: 40° 28'
A220: Matera | B220: -2 | C220: 60 | D220: 33 | E220: 10 | F220: 35 | G220: 11 | H220: 360 | I220: 40° 39'
A221: Potenza | B221: -3 | C221: 60 | D221: 28.5 | E221: 9.5 | F221: 40 | G221: 9.8 | H221: 843 | I221: 40° 38'
A222: Bonifati | B222: no | C222: 60 | D222: 28.5 | E222: 9 | F222: 64 | G222: 15.6 | H222: 480 | I222: 39° 04'
A223: Catanzaro | B223: -2 | C223: 60 | D223: 33 | E223: 10 | F223: 40 | G223: 12.6 | H223: 320 | I223: 38° 55'
A224: Cosenza | B224: -3 | C224: 60 | D224: 33.5 | E224: 8 | F224: 40 | G224: 13 | H224: 256 | I224: 39° 17'
A225: Crotone | B225: no | C225: 60 | D225: 33.5 | E225: 10 | F225: 42 | G225: 13.6 | H225: 158 | I225: 39° 00'
A226: Reggio Calabria | B226: 3 | C226: 60 | D226: 34 | E226: 9 | F226: 40 | G226: 13.4 | H226: 20 | I226: 38° 05'
A227: Agrigento | B227: 3 | C227: 60 | D227: 32.5 | E227: 10 | F227: 40 | G227: 12.3 | H227: 313 | I227: 37° 19'
A228: Caltanissetta | B228: 0 | C228: 60 | D228: 34 | E228: 9 | F228: 35 | G228: 11.6 | H228: 570 | I228: 37° 29'
A229: Catania Fontanarossa | B229: 5 | C229: 60 | D229: 33.5 | E229: 10 | F229: 48 | G229: 15.7 | H229: 16 | I229: 37° 28'
A230: Enna | B230: -3 | C230: 60 | D230: 29 | E230: 7 | F230: 40 | G230: 10 | H230: 964 | I230: 37° 34'
A231: Messina | B231: 5 | C231: 60 | D231: 32 | E231: 6 | F231: 48 | G231: 14.4 | H231: 54 | I231: 38° 12'
A232: Palermo Boccadifalco | B232: 5 | C232: 60 | D232: 32 | E232: 6.5 | F232: 45 | G232: 13.3 | H232: 122 | I232: 38° 07'
A233: Palermo Punta Raisi | B233: no | C233: 60 | D233: 31.5 | E233: 5 | F233: 60 | G233: 17.6 | H233: 21 | I233: 38° 11'
A234: Pantelleria | B234: no | C234: 60 | D234: 30 | E234: 5 | F234: 65 | G234: 17.3 | H234: 170 | I234: 36° 49'
A235: Ragusa | B235: 0 | C235: 60 | D235: 34 | E235: 8 | F235: 40 | G235: 13.4 | H235: 515 | I235: 36° 56'
A236: Siracusa | B236: 5 | C236: 60 | D236: 33 | E236: 7 | F236: 45 | G236: 14.2 | H236: 39 | I236: 37° 09'
A237: Trapani Birgi | B237: 5 | C237: 60 | D237: 31.5 | E237: 7.5 | F237: 60 | G237: 17.6 | H237: 14 | I237: 37° 55'
A238: Ustica | B238: no | C238: 60 | D238: 30 | E238: 5 | F238: 65 | G238: 17.3 | H238: 259 | I238: 38° 42'
A239: Alghero | B239: no | C239: 60 | D239: 30 | E239: 7.5 | F239: 48 | G239: 12.8 | H239: 40 | I239: 40° 38'
A240: Cagliari Elmas | B240: 3 | C240: 60 | D240: 32 | E240: 9 | F240: 52 | G240: 15.4 | H240: 18 | I240: 39° 15'
A241: Capo Bellavista | B241: no | C241: 60 | D241: 31 | E241: 6 | F241: 60 | G241: 17 | H241: 156 | I241: 39° 56'
A242: Nuoro | B242: 0 | C242: 60 | D242: 31 | E242: 9 | F242: 50 | G242: 14.1 | H242: 545 | I242: 40° 19'
A243: Olbia | B243: no | C243: 60 | D243: 31 | E243: 8 | F243: 52 | G243: 14.6 | H243: 2 | I243: 40° 56'
A244: Sassari | B244: 2 | C244: 60 | D244: 30.5 | E244: 8 | F244: 50 | G244: 13.7 | H244: 224 | I244: 40° 43'
A245: Alba Brà | B245: -10 | C245: 67 | D245: 32 | E245: 11 | F245: 50 | H245: 123 | I245: 45°
A246: Alba Brà - Francesco | B246: -10 | C246: 67 | D246: 34 | E246: 11 | F246: 50 | H246: 123 | I246: 46°
A247: prova | B247: no | C247: no | D247: 34 | E247: 11 | F247: 50 | G247: no | H247: no | I247: no
A271: inserire nuove località al massimo fino a qui poi riscrivere le formule
